{"text_format":"1","workbook":"xlsx","n_sheets":12,"sheets":["1-MPN","2-MPI","3-MCN","4-MCI","5-STB","6-STE","7-TRAN","8-DIP-DIE","9a-BOLSAS - TT","9b-BOLSAS IC,DD,PD - TEMÁTICO","9C-BOLSAS IC,MS,DD - JP","CONSOLIDADA"],"not_rendered":{"charts":0,"images":14,"macros":1,"external_links":0,"defined_names":214,"comments":0,"pivot_tables":0},"unopened":[],"bounds":{"document_bytes":16777216,"sheet_cells":100000,"rows_first":2000,"rows_last":500,"rows_between":2000,"halvings":0,"cell_chars":16384,"cell_head_chars":4096},"cells_cut":0,"cells_raw":0,"read":"whole","date_system":"1900"}

{"sheet":"1-MPN","index":0,"n_rows":174,"n_cols":33,"rows_kept":174,"cut":false,"hidden":false,"merged":[[53,14,53,15],[42,3,42,10],[43,3,43,10],[44,3,44,10],[0,7,0,8],[19,3,19,10],[29,3,29,10],[20,3,20,10],[23,3,23,10],[40,3,40,10],[41,3,41,10],[33,3,33,10],[34,3,34,10],[39,3,39,10],[37,3,37,10],[38,3,38,10],[28,3,28,10],[35,3,35,10],[36,3,36,10],[31,3,31,10],[30,3,30,10],[32,3,32,10],[6,1,6,12],[2,13,2,15],[25,3,25,10],[26,3,26,10],[27,3,27,10],[16,11,18,11],[16,12,18,12],[16,1,18,1],[16,2,18,2],[22,3,22,10],[10,5,10,15],[12,3,12,5],[14,3,14,5],[16,3,18,10],[16,13,18,13],[12,1,12,2],[14,1,14,2],[21,3,21,10],[24,3,24,10],[16,14,17,15],[173,1,173,15],[53,12,54,12],[53,13,54,13],[50,1,50,15],[53,11,54,11],[53,3,54,10],[56,3,56,10],[79,3,79,10],[64,3,64,10],[78,3,78,10],[53,2,54,2],[71,3,71,10],[65,3,65,10],[66,3,66,10],[57,3,57,10],[69,3,69,10],[91,3,91,10],[58,3,58,10],[75,3,75,10],[74,3,74,10],[73,3,73,10],[76,3,76,10],[62,3,62,10],[59,3,59,10],[171,3,171,10],[172,3,172,10],[93,1,93,15],[83,3,83,10],[84,3,84,10],[168,3,168,10],[166,11,167,11],[170,3,170,10],[146,1,146,15],[143,1,143,13],[144,1,144,13],[166,13,167,13],[166,12,167,12],[166,3,167,10],[166,1,167,1],[166,2,167,2],[160,1,160,15],[166,14,166,15],[48,3,48,10],[47,3,47,10],[90,3,90,10],[169,3,169,10],[45,3,45,10],[68,3,68,10],[67,3,67,10],[85,3,85,10],[86,3,86,10],[87,3,87,10],[88,3,88,10],[89,3,89,10],[60,3,60,10],[70,3,70,10],[61,3,61,10],[55,3,55,10],[80,3,80,10],[82,3,82,10],[81,3,81,10],[46,3,46,10],[77,3,77,10],[72,3,72,10],[63,3,63,10],[164,4,164,5]]}
[]
[null,null,null,null,null,null,null,null,null,null,null,null,null,null,null,null,null,null,null,null,null,"CÓDIGO EM VBA PRA DESPROTEGER QUALQUER PLANILHA"]
[]
[]
[]
[]
[null,"CLIQUE AQUI E SELECIONE A MODALIDADE DO AUXÍLIO SOLICITADO"]
[]
[null,"1- MATERIAL PERMANENTE NACIONAL"]
[]
[null,"NOME DO INTERESSADO:"]
[]
[null,"PROCESSO: "]
[]
[null,"TOTAL:  ",null,{"$f":"IF(SUM(N20:N49,N56:N92)=0,\"\",SUM(N20:N49,N56:N92))","v":""}]
[]
[null,"item","quant.","descrição (somente 1 linha para cada item)",null,null,null,null,null,null,null,"referência do orçamento","preço unitário","custo do item","FAPESP"]
[]
[null,null,null,null,null,null,null,null,null,null,null,null,null,null,"CONCEDIDO?","ALÍNEA"]
[null,null,null,null,null,null,null,null,null,null,null,null,null,{"$f":"IF(C20=0,\"\",C20*M20)","v":""},"       NÃO",null,null,null,"DOCUMENTAÇÃO"]
[null,null,null,null,null,null,null,null,null,null,null,null,null,"","       NÃO",null,null,null,"AS CÉLULAS COM FUNDO CINZA CONTEM FORMULAS (ESTÃO PROTEGIDAS). AS COM FUNDO AMARELO SÃO DESPROTEGIDAS"]
[null,null,null,null,null,null,null,null,null,null,null,null,null,"","       NÃO",null,null,null,"AS CORES SÃO DEFINIDAS POR FORMATAÇÃO CONDICIONAL"]
[null,null,null,null,null,null,null,null,null,null,null,null,null,"","       NÃO",null,null,null,"CONTÉM FÓRMULAS DE TOTALIZAÇÃO "]
[null,null,null,null,null,null,null,null,null,null,null,null,null,"","       NÃO"]
[null,null,null,null,null,null,null,null,null,null,null,null,null,"","       NÃO",null,null,null,"IMAGENS NA PLANILHA"]
[null,null,null,null,null,null,null,null,null,null,null,null,null,"","       NÃO",null,null,null,"A IMAGEM  PARA IR À INSTRUÇÃO  PARA PREENCHIMENTO TEM LINK PARA A LINHA 184"]
[null,null,null,null,null,null,null,null,null,null,null,null,null,"","       NÃO",null,null,null,"SOMENTE A IMAGEM DE 50 ANOS DA FAPESP SERÁ IMPRESSA, AS DEMAIS SÃO INFORMATIVAS"]
[null,null,null,null,null,null,null,null,null,null,null,null,null,"","       NÃO"]
[null,null,null,null,null,null,null,null,null,null,null,null,null,"","       NÃO",null,null,null,"COMUNICAÇAO ENTRE AS PLANILHAS"]
[null,null,null,null,null,null,null,null,null,null,null,null,null,"","       NÃO",null,null,null,"A ÚNICA PLANILHA QUE SE COMUNICA COM TODAS AS OUTRAS É A CONSOLIDADA, O MÊS DEVE SER INSERIDO SOMENTE EM 1-MPN"]
[null,null,null,null,null,null,null,null,null,null,null,null,null,"","       NÃO"]
[null,null,null,null,null,null,null,null,null,null,null,null,null,"","       NÃO",null,null,null,"INFORMAÇÕES GERAIS"]
[null,null,null,null,null,null,null,null,null,null,null,null,null,"","       NÃO",null,null,null,"AS PLANILHAS FORAM VERTICALIZADAS ENTRE MAIO E JUNHO DE 2010"]
[null,null,null,null,null,null,null,null,null,null,null,null,null,"","       NÃO",null,null,null,"NAS PLANILHAS \"NACIONAIS\", AS DUAS PÁGINAS TEM 47 LINHAS "]
[null,null,null,null,null,null,null,null,null,null,null,null,null,"","       NÃO",null,null,null,"NAS PLANILAS \"INTERNACIONAIS\", A PRIMEIRA PÁGINA TEM 40 LINHAS E A SEGUNDA 47."]
[null,null,null,null,null,null,null,null,null,null,null,null,null,"","       NÃO",null,null,null,"AS LINHAS DE TODAS AS PLANILHAS TEM ALTURA DE \"23,25\"."]
[null,null,null,null,null,null,null,null,null,null,null,null,null,"","       NÃO",null,null,null,"ELAS FORAM FORMATADAS PRA APARECER INTEGRALMENTE NA TELA COM ZOOM DE 100%"]
[null,null,null,null,null,null,null,null,null,null,null,null,null,"","       NÃO"]
[null,null,null,null,null,null,null,null,null,null,null,null,null,"","       NÃO",null,null,null,"CONFIGURAÇÃO DE MARGEM"]
[null,null,null,null,null,null,null,null,null,null,null,null,null,"","       NÃO",null,null,null,1]
[null,null,null,null,null,null,null,null,null,null,null,null,null,"","       NÃO",null,null,null,"1,9                                                   0,7       "]
[null,null,null,null,null,null,null,null,null,null,null,null,null,"","       NÃO",null,null,null,1]
[null,null,null,null,null,null,null,null,null,null,null,null,null,"","       NÃO",null,null,null,"CLIQUE AQUI E SELECIONE A MODALIDADE DO AUXÍLIO SOLICITADO"]
[null,null,null,null,null,null,null,null,null,null,null,null,null,"","       NÃO",null,null,46,"AUXÍLIO À PESQUISA - PROJETO TEMÁTICO"]
[null,null,null,null,null,null,null,null,null,null,null,null,null,"","       NÃO",null,null,47,"AUXÍLIO À PESQUISA - JOVENS PESQUISADORES"]
[null,null,null,null,null,null,null,null,null,null,null,null,null,"","       NÃO",null,null,48,"AUXÍLIO À PESQUISA - ENSINO PÚBLICO"]
[null,null,null,null,null,null,null,null,null,null,null,null,null,"","       NÃO",null,null,49,"AUXÍLIO À PESQUISA - POLÍTICAS PÚBLICAS"]
[null,null,null,null,null,null,null,null,null,null,null,null,null,"","       NÃO",null,null,50,"AUXÍLIO À PESQUISA - REGULAR"]
[null,null,null,null,null,null,null,null,null,null,null,null,null,"","       NÃO"]
[]
[null,"- JUSTIFIQUE EM ANEXO A UTILIDADE DE CADA MATERIAL SOLICITADO PARA O DESENVOLVIMENTO DO PROJETO DE PESQUISA PROPOSTO.  "]
[null,"FAPESP, AGOSTO DE 2017",null,null,null,null,null,null,null,null,null,null,null,null,null,1]
[null,"MATERIAL PERMANENTE NACIONAL",null,null,null,null,null,null,null,null,null,null,null,null,null,null,null,null,null,null,null,null,null,null,null,null,null,null,null,null,null,null,"Valores vigentes a partir de 1º/4/2011"]
[null,"item","quant.","descrição (somente 1 linha para cada item)",null,null,null,null,null,null,null,"referência do orçamento","preço unitário","custo do item","FAPESP"]
[null,null,null,null,null,null,null,null,null,null,null,null,null,null,"CONCEDIDO?","ALÍNEA",null,null,null,null,null,null,null,null,null,null,null,null,null,null,null,null,502.8]
[null,null,null,null,null,null,null,null,null,null,null,null,null,{"$f":"IF(C56=0,\"\",C56*M56)","v":""},"       NÃO",null,null,null,null,null,null,null,null,null,null,null,null,null,null,null,null,null,1477.2]
[null,null,null,null,null,null,null,null,null,null,null,null,null,"","       NÃO",null,null,null,null,null,null,null,null,null,null,null,null,null,null,null,null,null,1568.4]
[null,null,null,null,null,null,null,null,null,null,null,null,null,"","       NÃO",null,null,null,null,null,null,null,null,null,null,null,null,null,null,null,null,null,2177.6999999999998]
[null,null,null,null,null,null,null,null,null,null,null,null,null,"","       NÃO",null,null,null,null,null,null,null,null,null,null,null,null,null,null,null,null,null,2695.2]
[null,null,null,null,null,null,null,null,null,null,null,null,null,"","       NÃO",null,null,null,null,null,null,null,null,null,null,null,null,null,null,null,null,null,5333.4]
[null,null,null,null,null,null,null,null,null,null,null,null,null,"","       NÃO"]
[null,null,null,null,null,null,null,null,null,null,null,null,null,"","       NÃO",null,null,null,null,null,null,null,null,null,null,null,null,null,null,null,null,null,317.39999999999998]
[null,null,null,null,null,null,null,null,null,null,null,null,null,"","       NÃO",null,null,null,null,null,null,null,null,null,null,null,null,null,null,null,null,null,634.79999999999995]
[null,null,null,null,null,null,null,null,null,null,null,null,null,{"$f":"IF(C64=0,\"\",C64*M64)","v":""},"       NÃO",null,null,null,null,null,null,null,null,null,null,null,null,null,null,null,null,null,634.79999999999995]
[null,null,null,null,null,null,null,null,null,null,null,null,null,"","       NÃO",null,null,null,null,null,null,null,null,null,null,null,null,null,null,null,null,null,888.3]
[null,null,null,null,null,null,null,null,null,null,null,null,null,"","       NÃO",null,null,null,null,null,null,null,null,null,null,null,null,null,null,null,null,null,2246.1]
[null,null,null,null,null,null,null,null,null,null,null,null,null,"","       NÃO",null,null,null,null,null,null,null,null,null,null,null,null,null,null,null,null,null,3679.8]
[null,null,null,null,null,null,null,null,null,null,null,null,null,"","       NÃO",null,null,null,null,null,null,null,null,null,null,null,null,null,null,null,null,null,5333.4]
[null,null,null,null,null,null,null,null,null,null,null,null,null,"","       NÃO",null,null,null,null,null,null,null,null,null,null,null,null,null,null,null,null,null,507.6]
[null,null,null,null,null,null,null,null,null,null,null,null,null,"","       NÃO",null,null,null,null,null,null,null,null,null,null,null,null,null,null,null,null,null,761.4]
[null,null,null,null,null,null,null,null,null,null,null,null,null,"","       NÃO",null,null,null,null,null,null,null,null,null,null,null,null,null,null,null,null,null,"US$ 1.200,00"]
[null,null,null,null,null,null,null,null,null,null,null,null,null,"","       NÃO"]
[null,null,null,null,null,null,null,null,null,null,null,null,null,"","       NÃO",null,null,null,null,null,null,null,null,null,null,null,null,null,null,null,null,null,6060.3]
[null,null,null,null,null,null,null,null,null,null,null,null,null,"","       NÃO"]
[null,null,null,null,null,null,null,null,null,null,null,null,null,"","       NÃO",null,null,null,null,null,null,null,null,null,null,null,null,null,null,null,null,null,228.6]
[null,null,null,null,null,null,null,null,null,null,null,null,null,"","       NÃO",null,null,null,null,null,null,null,null,null,null,null,null,null,null,null,null,null,456.9]
[null,null,null,null,null,null,null,null,null,null,null,null,null,"","       NÃO",null,null,null,null,null,null,null,null,null,null,null,null,null,null,null,null,null,685.5]
[null,null,null,null,null,null,null,null,null,null,null,null,null,"","       NÃO",null,null,null,null,null,null,null,null,null,null,null,null,null,null,null,null,null,913.5]
[null,null,null,null,null,null,null,null,null,null,null,null,null,"","       NÃO",null,null,null,null,null,null,null,null,null,null,null,null,null,null,null,null,null,1142.4000000000001]
[null,null,null,null,null,null,null,null,null,null,null,null,null,"","       NÃO",null,null,null,null,null,null,null,null,null,null,null,null,null,null,null,null,null,1827.3]
[null,null,null,null,null,null,null,null,null,null,null,null,null,"","       NÃO"]
[null,null,null,null,null,null,null,null,null,null,null,null,null,"","       NÃO",null,null,null,null,null,null,null,null,null,null,null,null,null,null,null,null,null,2928]
[null,null,null,null,null,null,null,null,null,null,null,null,null,"","       NÃO",null,null,null,null,null,null,null,null,null,null,null,null,null,null,null,null,null,4332.8999999999996]
[null,null,null,null,null,null,null,null,null,null,null,null,null,"","       NÃO",null,null,null,null,null,null,null,null,null,null,null,null,null,null,null,null,null,6060.3]
[null,null,null,null,null,null,null,null,null,null,null,null,null,"","       NÃO"]
[null,null,null,null,null,null,null,null,null,null,null,null,null,"","       NÃO",null,null,null,null,null,null,null,null,null,null,null,null,null,null,null,null,null,502.8]
[null,null,null,null,null,null,null,null,null,null,null,null,null,"","       NÃO",null,null,null,null,null,null,null,null,null,null,null,null,null,null,null,null,null,1477.2]
[null,null,null,null,null,null,null,null,null,null,null,null,null,"","       NÃO",null,null,null,null,null,null,null,null,null,null,null,null,null,null,null,null,null,2177.6999999999998]
[null,null,null,null,null,null,null,null,null,null,null,null,null,"","       NÃO",null,null,null,null,null,null,null,null,null,null,null,null,null,null,null,null,null,5333.4]
[null,null,null,null,null,null,null,null,null,null,null,null,null,"","       NÃO"]
[null,null,null,null,null,null,null,null,null,null,null,null,null,"","       NÃO"]
[null,null,null,null,null,null,null,null,null,null,null,null,null,"","       NÃO"]
[]
[null,"- JUSTIFIQUE EM ANEXO A UTILIDADE DE CADA MATERIAL SOLICITADO PARA O DESENVOLVIMENTO DO PROJETO DE PESQUISA PROPOSTO.  "]
[null,{"$f":"B52","v":"FAPESP, AGOSTO DE 2017"},null,null,null,null,null,null,null,null,null,null,null,null,null,2]
[]
[]
[]
[]
[]
[]
[]
[]
[]
[]
[]
[]
[]
[]
[]
[]
[]
[]
[]
[]
[]
[]
[]
[]
[]
[]
[]
[]
[]
[]
[]
[]
[]
[]
[]
[]
[]
[]
[]
[]
[]
[]
[]
[]
[null,"PARA IMPRIMIR A INSTRUÇÃO ABAIXO, SELECIONE A ÁREA A SER IMPRESSA"]
[null,"DIGITE \"CTRL\" P, E DEPOIS CLIQUE EM SELEÇÃO."]
[]
[]
[null," INSTRUÇÕES PARA PREENCHIMENTO – LEIA ATENTAMENTE AS INSTRUÇÕES ABAIXO."]
[null,"MATERIAL PERMANENTE NACIONAL (MPN) "]
[]
[null,"NÃO SERÃO ACEITOS FORMULÁRIOS PREENCHIDOS EM DESACORDO COM ESTA INSTRUÇÃO"]
[]
[null,"- Não incluir aquisição de publicações, materiais administrativos (móveis, etc.). O Auxílio destina-se exclusivamente a materiais de pesquisa.  "]
[null,"- Devem ser incluídos neste formulário, todos os materiais permanentes que se pretendam adquirir no Brasil, independente de serem eles de fabricação estrangeira ou nacional."]
[null,"- Coluna (item) - cada material solicitado deve ser numerado seqüencialmente. Considere um item para cada material (equipamento e componentes) e um sub-item para cada"]
[null,"   um dos seus acessórios, deixando claro quais são os acessórios correspondentes a um determinado item, com letras seqüenciais. (Ver exemplo abaixo). "]
[null,"- Coluna (quant.) - quantidade de cada um dos itens solicitados.  "]
[null,"- Coluna (descrição) - descreva os materiais a  serem adquiridos, indicando  nome,  modelo, tipo, etc. Toda a descrição deve ser feita em PORTUGUÊS.  "]
[null,"- Coluna (referência do orçamento) - número do orçamento (faça a correlação entre o item solicitado e o orçamento apresentado)."]
[null,"- Coluna (preço unitário)- valor unitário em moeda nacional  "]
[null,"- Coluna (custo do item) - total parcial em  moeda nacional, do material solicitado em cada item. (O preenchimento  e totalização desta coluna é automático).  "]
[null,"- Coluna (FAPESP) - para uso exclusivo da FAPESP.  "]
[]
[null,"OBSERVAÇÕES: "]
[null,"1) Três orçamentos (não é necessário apresentar proformas na submissão) para cada um dos itens de Material Permanente Nacional ou Importado cujo\n valor supere dez  vezes o salário mínimo nacional. "]
[null,"2) Recomenda-se uma verificação de preços antes da solicitação, a fim de evitar alterações no decorrer do projeto e demoras indesejáveis."]
[null,"3) Justifique em anexo a utilidade de cada material solicitado para o desenvolvimento do projeto de pesquisa proposto.  "]
[]
[null,"EXEMPLO  ",null,"TOTAL",{"$f":"SUM(N169:P173)","v":1834}]
[]
[null,"item","quant.","descrição (somente 1 linha para cada item)",null,null,null,null,null,null,null,"referência do orçamento","preço unitário","custo do item","FAPESP"]
[null,null,null,null,null,null,null,null,null,null,null,null,null,null,"CONCEDIDO?","ALÍNEA"]
[null,1,1,"Cuba de eletroforese horizontal",null,null,null,null,null,null,null,null,500,{"$f":"IF(C169=0,0,C169*M169)","v":500},"       NÃO"]
[null,"1a",2,"Pente 30 dentes, 1 mm espessura, para uso com a cuba acima",null,null,null,null,null,null,null,null,46,{"$f":"IF(C170=0,0,C170*M170)","v":92},"       NÃO"]
[null,"1b",2,"Pente 30 dentes, 2 mm espessura, para uso com a cuba acima",null,null,null,null,null,null,null,null,46,{"$f":"IF(C171=0,0,C171*M171)","v":92},"       NÃO"]
[null,2,1,"Transdutor ultrasônico",null,null,null,null,null,null,null,null,1100,{"$f":"IF(C172=0,0,C172*M172)","v":1100},"       NÃO"]
[null,"2a",1,"cabo padrão a prova d'água",null,null,null,null,null,null,null,null,50,{"$f":"IF(C173=0,0,C173*M173)","v":50},"       NÃO"]
[null,{"$f":"B94","v":"- JUSTIFIQUE EM ANEXO A UTILIDADE DE CADA MATERIAL SOLICITADO PARA O DESENVOLVIMENTO DO PROJETO DE PESQUISA PROPOSTO.  "}]

{"sheet":"2-MPI","index":1,"n_rows":177,"n_cols":24,"rows_kept":177,"cut":false,"hidden":false,"merged":[[175,3,175,10],[175,14,175,15],[175,16,175,17],[168,3,168,4],[168,5,168,6],[172,3,172,10],[172,14,172,15],[172,16,172,17],[173,3,173,10],[173,14,173,15],[173,16,173,17],[174,3,174,10],[174,14,174,15],[174,16,174,17],[143,2,143,20],[145,1,145,20],[163,1,163,20],[170,1,171,1],[170,2,171,2],[170,3,171,10],[170,11,171,11],[170,14,171,15],[170,16,170,17],[171,16,171,17],[171,18,171,19],[170,18,170,20],[97,3,97,10],[97,14,97,15],[97,16,97,18],[98,3,98,10],[98,14,98,15],[98,16,98,18],[100,1,100,20],[101,12,101,17],[142,2,142,20],[94,3,94,10],[94,14,94,15],[94,16,94,18],[95,3,95,10],[95,14,95,15],[95,16,95,18],[96,3,96,10],[96,14,96,15],[96,16,96,18],[91,3,91,10],[91,14,91,15],[91,16,91,18],[92,3,92,10],[92,14,92,15],[92,16,92,18],[93,3,93,10],[93,14,93,15],[93,16,93,18],[88,3,88,10],[88,14,88,15],[88,16,88,18],[89,3,89,10],[89,14,89,15],[89,16,89,18],[90,3,90,10],[90,14,90,15],[90,16,90,18],[85,3,85,10],[85,14,85,15],[85,16,85,18],[86,3,86,10],[86,14,86,15],[86,16,86,18],[87,3,87,10],[87,14,87,15],[87,16,87,18],[81,14,81,15],[81,16,81,18],[82,3,82,10],[82,14,82,15],[82,16,82,18],[83,3,83,10],[83,14,83,15],[83,16,83,18],[84,3,84,10],[84,14,84,15],[84,16,84,18],[21,16,21,18],[21,14,21,15],[21,3,21,10],[15,1,15,2],[13,1,13,2],[5,1,5,20],[7,6,7,20],[39,14,39,15],[35,14,35,15],[35,3,35,10],[34,16,34,18],[34,14,34,15],[34,3,34,10],[30,16,30,18],[30,14,30,15],[29,16,29,18],[39,16,39,18],[19,12,20,12],[19,13,20,13],[19,11,20,11],[19,16,20,18],[24,3,24,10],[24,14,24,15],[24,16,24,18],[41,16,41,18],[41,3,41,10],[40,16,40,18],[40,14,40,15],[42,3,42,10],[42,14,42,15],[42,16,42,18],[48,16,48,18],[48,14,48,15],[48,3,48,10],[47,16,47,18],[47,14,47,15],[46,16,46,18],[46,14,46,15],[45,16,45,18],[45,14,45,15],[45,3,45,10],[47,3,47,10],[58,13,59,13],[58,14,59,15],[58,16,59,18],[58,19,58,20],[44,16,44,18],[44,14,44,15],[44,3,44,10],[43,16,43,18],[43,14,43,15],[49,3,49,10],[49,14,49,15],[49,16,49,18],[50,3,50,10],[50,14,50,15],[50,16,50,18],[51,3,51,10],[51,14,51,15],[51,16,51,18],[52,3,52,10],[52,14,52,15],[52,16,52,18],[53,3,53,10],[53,14,53,15],[53,16,53,18],[80,3,80,10],[80,14,80,15],[80,16,80,18],[81,3,81,10],[25,16,25,18],[26,3,26,10],[26,14,26,15],[26,16,26,18],[27,3,27,10],[27,14,27,15],[27,16,27,18],[28,3,28,10],[28,14,28,15],[28,16,28,18],[46,3,46,10],[41,14,41,15],[39,3,39,10],[40,3,40,10],[62,16,62,18],[55,1,55,20],[56,12,56,17],[58,1,59,1],[58,2,59,2],[58,3,59,10],[25,3,25,10],[25,14,25,15],[23,16,23,18],[23,14,23,15],[23,3,23,10],[22,16,22,18],[35,16,35,18],[22,14,22,15],[22,3,22,10],[33,16,33,18],[29,3,29,10],[31,3,31,10],[31,14,31,15],[32,14,32,15],[32,16,32,18],[31,16,31,18],[32,3,32,10],[29,14,29,15],[30,3,30,10],[33,3,33,10],[19,2,20,2],[19,1,20,1],[13,8,13,9],[17,1,17,2],[13,14,13,15],[15,14,15,15],[15,8,15,9],[17,3,17,7],[13,13,15,13],[19,14,20,15],[19,3,20,10],[19,19,19,20],[13,18,13,19],[15,18,15,19],[79,14,79,15],[79,16,79,18],[75,3,75,10],[69,3,69,10],[78,3,78,10],[78,14,78,15],[79,3,79,10],[78,16,78,18],[76,3,76,10],[77,3,77,10],[70,14,70,15],[69,14,69,15],[69,16,69,18],[70,16,70,18],[70,3,70,10],[73,14,73,15],[73,16,73,18],[77,16,77,18],[74,16,74,18],[76,14,76,15],[74,3,74,10],[67,3,67,10],[67,14,67,15],[74,14,74,15],[77,14,77,15],[68,3,68,10],[68,14,68,15],[68,16,68,18],[76,16,76,18],[67,16,67,18],[37,16,37,18],[38,3,38,10],[43,3,43,10],[61,3,61,10],[61,14,61,15],[63,16,63,18],[63,3,63,10],[64,16,64,18],[66,3,66,10],[66,14,66,15],[66,16,66,18],[65,3,65,10],[65,14,65,15],[65,16,65,18],[64,3,64,10],[64,14,64,15],[63,14,63,15],[60,16,60,18],[60,3,60,10],[60,14,60,15],[62,3,62,10],[62,14,62,15],[58,11,59,11],[58,12,59,12],[172,18,172,19],[173,18,173,19],[174,18,174,19],[175,18,175,19],[176,1,176,20],[38,16,38,18],[9,4,9,6],[73,3,73,10],[61,16,61,18],[72,14,72,15],[72,16,72,18],[75,14,75,15],[75,16,75,18],[71,3,71,10],[71,14,71,15],[71,16,71,18],[72,3,72,10],[38,14,38,15],[33,14,33,15],[36,3,36,10],[36,14,36,15],[36,16,36,18],[37,3,37,10],[37,14,37,15]]}
[]
[]
[]
[]
[]
[null,"2- MATERIAL PERMANENTE IMPORTADO"]
[]
[null,"NOME DO INTERESSADO:"]
[]
[null,"PROCESSO: "]
[]
[null,"CÂMBIO (INFORME A SIGLA DA MOEDA E O VALOR DE SUA TAXA EM DÓLAR)"]
[]
[null,"MOEDA 1:",null,"USD","TAXA:",1,null,null,"MOEDA 2:",null,null,"TAXA:",null,null,"MOEDA 3:",null,null,"TAXA:"]
[]
[null,"MOEDA 4:",null,null,"TAXA:",null,null,null,"MOEDA 5:",null,null,"TAXA:",null,null,"MOEDA 6:",null,null,"TAXA:"]
[]
[null,"TOTAL: ",null,{"$f":"IF(SUM(Q22:S54,Q61:S99)=0,\"\",SUM(Q22:S54,Q61:S99))","v":""}]
[]
[null,"item","quant.","descrição (somente 1 linha para cada item)",null,null,null,null,null,null,null,"referência do orçamento","moeda de origem","preço unitário","custo do item moeda original",null,"custo do item US$",null,null,"FAPESP"]
[null,null,null,null,null,null,null,null,null,null,null,null,null,null,null,null,null,null,null,"CONCEDIDO?","ALÍNEA"]
[null,null,null,null,null,null,null,null,null,null,null,null,null,null,{"$f":"IF(C22*N22=0,\"\",C22*N22)","v":""},null,{"$f":"IF(ISERROR(INDEX($X$22:$X$27,MATCH(M22,$W$22:$W$27,0))*O22),\"\",INDEX($X$22:$X$27,MATCH(M22,$W$22:$W$27,0))*O22)","v":""},null,null,"       NÃO",null,null,{"$f":"D14","v":"USD"},{"$f":"F14","v":1}]
[null,null,null,null,null,null,null,null,null,null,null,null,null,null,{"$f":"IF(C23*N23=0,\"\",C23*N23)","v":""},null,"",null,null,"       NÃO",null,null,{"$f":"IF(K14=0,\"\",K14)","v":""},{"$f":"M14","v":0}]
[null,null,null,null,null,null,null,null,null,null,null,null,null,null,"",null,"",null,null,"       NÃO",null,null,{"$f":"IF(Q14=0,\"\",Q14)","v":""},{"$f":"S14","v":0}]
[null,null,null,null,null,null,null,null,null,null,null,null,null,null,"",null,"",null,null,"       NÃO",null,null,{"$f":"IF(D16=0,\"\",D16)","v":""},{"$f":"F16","v":0}]
[null,null,null,null,null,null,null,null,null,null,null,null,null,null,"",null,"",null,null,"       NÃO",null,null,{"$f":"IF(K16=0,\"\",K16)","v":""},{"$f":"M16","v":0}]
[null,null,null,null,null,null,null,null,null,null,null,null,null,null,"",null,"",null,null,"       NÃO",null,null,{"$f":"IF(Q16=0,\"\", Q16)","v":""},{"$f":"S16","v":0}]
[null,null,null,null,null,null,null,null,null,null,null,null,null,null,"",null,"",null,null,"       NÃO"]
[null,null,null,null,null,null,null,null,null,null,null,null,null,null,"",null,"",null,null,"       NÃO"]
[null,null,null,null,null,null,null,null,null,null,null,null,null,null,"",null,"",null,null,"       NÃO"]
[null,null,null,null,null,null,null,null,null,null,null,null,null,null,"",null,"",null,null,"       NÃO"]
[null,null,null,null,null,null,null,null,null,null,null,null,null,null,"",null,"",null,null,"       NÃO"]
[null,null,null,null,null,null,null,null,null,null,null,null,null,null,"",null,"",null,null,"       NÃO"]
[null,null,null,null,null,null,null,null,null,null,null,null,null,null,"",null,"",null,null,"       NÃO"]
[null,null,null,null,null,null,null,null,null,null,null,null,null,null,"",null,"",null,null,"       NÃO"]
[null,null,null,null,null,null,null,null,null,null,null,null,null,null,"",null,"",null,null,"       NÃO"]
[null,null,null,null,null,null,null,null,null,null,null,null,null,null,"",null,"",null,null,"       NÃO"]
[null,null,null,null,null,null,null,null,null,null,null,null,null,null,"",null,"",null,null,"       NÃO"]
[null,null,null,null,null,null,null,null,null,null,null,null,null,null,"",null,"",null,null,"       NÃO"]
[null,null,null,null,null,null,null,null,null,null,null,null,null,null,"",null,"",null,null,"       NÃO"]
[null,null,null,null,null,null,null,null,null,null,null,null,null,null,"",null,"",null,null,"       NÃO"]
[null,null,null,null,null,null,null,null,null,null,null,null,null,null,"",null,"",null,null,"       NÃO"]
[null,null,null,null,null,null,null,null,null,null,null,null,null,null,"",null,"",null,null,"       NÃO"]
[null,null,null,null,null,null,null,null,null,null,null,null,null,null,"",null,"",null,null,"       NÃO"]
[null,null,null,null,null,null,null,null,null,null,null,null,null,null,"",null,"",null,null,"       NÃO"]
[null,null,null,null,null,null,null,null,null,null,null,null,null,null,"",null,"",null,null,"       NÃO"]
[null,null,null,null,null,null,null,null,null,null,null,null,null,null,"",null,"",null,null,"       NÃO"]
[null,null,null,null,null,null,null,null,null,null,null,null,null,null,"",null,"",null,null,"       NÃO"]
[null,null,null,null,null,null,null,null,null,null,null,null,null,null,"",null,"",null,null,"       NÃO"]
[null,null,null,null,null,null,null,null,null,null,null,null,null,null,"",null,"",null,null,"       NÃO"]
[null,null,null,null,null,null,null,null,null,null,null,null,null,null,"",null,"",null,null,"       NÃO"]
[null,null,null,null,null,null,null,null,null,null,null,null,null,null,"",null,"",null,null,"       NÃO"]
[null,null,null,null,null,null,null,null,null,null,null,null,null,null,"",null,"",null,null,"       NÃO"]
[null,null,null,null,null,null,null,null,null,null,null,null,null,null,"",null,"",null,null,"       NÃO"]
[]
[null,"- JUSTIFIQUE EM ANEXO A UTILIDADE DE CADA MATERIAL SOLICITADO PARA O DESENVOLVIMENTO DO PROJETO DE PESQUISA PROPOSTO.  "]
[null,{"$f":"'1-MPN'!B95","v":"FAPESP, AGOSTO DE 2017"},null,null,null,null,null,null,null,null,null,null,null,null,null,null,null,null,null,null,1]
[null,"MATERIAL PERMANENTE IMPORTADO"]
[null,"item","quant.","descrição (somente 1 linha para cada item)",null,null,null,null,null,null,null,"referência do orçamento","moeda de origem","preço unitário","custo do item moeda original",null,"custo do item US$",null,null,"FAPESP"]
[null,null,null,null,null,null,null,null,null,null,null,null,null,null,null,null,null,null,null,"CONCEDIDO?","ALÍNEA"]
[null,null,null,null,null,null,null,null,null,null,null,null,null,null,{"$f":"IF(C61*N61=0,\"\",C61*N61)","v":""},null,{"$f":"IF(ISERROR(INDEX($X$22:$X$27,MATCH(M61,$W$22:$W$27,0))*O61),\"\",INDEX($X$22:$X$27,MATCH(M61,$W$22:$W$27,0))*O61)","v":""},null,null,"       NÃO"]
[null,null,null,null,null,null,null,null,null,null,null,null,null,null,"",null,{"$f":"IF(ISERROR(INDEX($X$22:$X$27,MATCH(M62,$W$22:$W$27,0))*O62),\"\",INDEX($X$22:$X$27,MATCH(M62,$W$22:$W$27,0))*O62)","v":""},null,null,"       NÃO"]
[null,null,null,null,null,null,null,null,null,null,null,null,null,null,"",null,"",null,null,"       NÃO"]
[null,null,null,null,null,null,null,null,null,null,null,null,null,null,"",null,"",null,null,"       NÃO"]
[null,null,null,null,null,null,null,null,null,null,null,null,null,null,"",null,"",null,null,"       NÃO"]
[null,null,null,null,null,null,null,null,null,null,null,null,null,null,"",null,"",null,null,"       NÃO"]
[null,null,null,null,null,null,null,null,null,null,null,null,null,null,"",null,"",null,null,"       NÃO"]
[null,null,null,null,null,null,null,null,null,null,null,null,null,null,"",null,"",null,null,"       NÃO"]
[null,null,null,null,null,null,null,null,null,null,null,null,null,null,"",null,"",null,null,"       NÃO"]
[null,null,null,null,null,null,null,null,null,null,null,null,null,null,"",null,"",null,null,"       NÃO"]
[null,null,null,null,null,null,null,null,null,null,null,null,null,null,"",null,"",null,null,"       NÃO"]
[null,null,null,null,null,null,null,null,null,null,null,null,null,null,"",null,"",null,null,"       NÃO"]
[null,null,null,null,null,null,null,null,null,null,null,null,null,null,"",null,"",null,null,"       NÃO"]
[null,null,null,null,null,null,null,null,null,null,null,null,null,null,"",null,"",null,null,"       NÃO"]
[null,null,null,null,null,null,null,null,null,null,null,null,null,null,"",null,"",null,null,"       NÃO"]
[null,null,null,null,null,null,null,null,null,null,null,null,null,null,"",null,"",null,null,"       NÃO"]
[null,null,null,null,null,null,null,null,null,null,null,null,null,null,"",null,"",null,null,"       NÃO"]
[null,null,null,null,null,null,null,null,null,null,null,null,null,null,"",null,"",null,null,"       NÃO"]
[null,null,null,null,null,null,null,null,null,null,null,null,null,null,"",null,"",null,null,"       NÃO"]
[null,null,null,null,null,null,null,null,null,null,null,null,null,null,"",null,"",null,null,"       NÃO"]
[null,null,null,null,null,null,null,null,null,null,null,null,null,null,"",null,"",null,null,"       NÃO"]
[null,null,null,null,null,null,null,null,null,null,null,null,null,null,"",null,"",null,null,"       NÃO"]
[null,null,null,null,null,null,null,null,null,null,null,null,null,null,"",null,"",null,null,"       NÃO"]
[null,null,null,null,null,null,null,null,null,null,null,null,null,null,"",null,"",null,null,"       NÃO"]
[null,null,null,null,null,null,null,null,null,null,null,null,null,null,"",null,"",null,null,"       NÃO"]
[null,null,null,null,null,null,null,null,null,null,null,null,null,null,"",null,"",null,null,"       NÃO"]
[null,null,null,null,null,null,null,null,null,null,null,null,null,null,"",null,"",null,null,"       NÃO"]
[null,null,null,null,null,null,null,null,null,null,null,null,null,null,"",null,"",null,null,"       NÃO"]
[null,null,null,null,null,null,null,null,null,null,null,null,null,null,"",null,"",null,null,"       NÃO"]
[null,null,null,null,null,null,null,null,null,null,null,null,null,null,"",null,"",null,null,"       NÃO"]
[null,null,null,null,null,null,null,null,null,null,null,null,null,null,"",null,"",null,null,"       NÃO"]
[null,null,null,null,null,null,null,null,null,null,null,null,null,null,"",null,"",null,null,"       NÃO"]
[null,null,null,null,null,null,null,null,null,null,null,null,null,null,"",null,"",null,null,"       NÃO"]
[null,null,null,null,null,null,null,null,null,null,null,null,null,null,"",null,"",null,null,"       NÃO"]
[null,null,null,null,null,null,null,null,null,null,null,null,null,null,"",null,"",null,null,"       NÃO"]
[null,null,null,null,null,null,null,null,null,null,null,null,null,null,"",null,"",null,null,"       NÃO"]
[null,null,null,null,null,null,null,null,null,null,null,null,null,null,"",null,"",null,null,"       NÃO"]
[null,null,null,null,null,null,null,null,null,null,null,null,null,null,"",null,"",null,null,"       NÃO"]
[null,null,null,null,null,null,null,null,null,null,null,null,null,null,"",null,"",null,null,"       NÃO"]
[]
[null,{"$f":"B56","v":"- JUSTIFIQUE EM ANEXO A UTILIDADE DE CADA MATERIAL SOLICITADO PARA O DESENVOLVIMENTO DO PROJETO DE PESQUISA PROPOSTO.  "}]
[null,{"$f":"B57","v":"FAPESP, AGOSTO DE 2017"},null,null,null,null,null,null,null,null,null,null,null,null,null,null,null,null,7,null,2]
[]
[]
[]
[]
[]
[]
[]
[]
[]
[]
[]
[]
[]
[]
[]
[]
[]
[]
[]
[]
[]
[]
[]
[]
[]
[]
[]
[]
[]
[]
[]
[]
[]
[]
[]
[null,"PARA IMPRIMIR A INSTRUÇÃO ABAIXO, SELECIONE A ÁREA A SER IMPRESSA"]
[null,"DIGITE \"CTRL\" P, E DEPOIS CLIQUE EM SELEÇÃO."]
[]
[]
[]
[null,null,"FORMULÁRIO 2 - INSTRUÇÕES PARA PREENCHIMENTO – LEIA ATENTAMENTE AS INSTRUÇÕES ABAIXO."]
[null,null,"MATERIAL  PERMANENTE IMPORTADO (MPI) "]
[]
[null,"NÃO SERÃO ACEITOS FORMULÁRIOS PREENCHIDOS EM DESACORDO COM ESTA INSTRUÇÃO"]
[]
[null,"- Não incluir aquisição de publicações, materiais administrativos, etc. O Auxílio destina-se exclusivamente a materiais de pesquisa. "]
[null,"- Devem ser incluídos nesta folha todos os materiais permanentes que se pretendam adquirir diretamente no exterior (importação direta). "]
[null,"- Coluna (item) - cada material solicitado deve ser numerado seqüencialmente. Considere um item para cada material (equipamento e componentes) e um sub-item para"]
[null,"   cada um dos seus acessórios, deixando claro quais são os acessórios correspondentes a um determinado item (Ver exemplo abaixo)"]
[null,"- Coluna (quant.) - quantidade de cada um dos itens solicitados. "]
[null,"- Coluna (descrição) - descreva os materiais que se pretende adquirir, indicando nome, modelo, tipo, etc. e país de procedência, descreva despesas cobradas pelo"]
[null,"    exportador (ex.: embalagem, documentação, etc). Toda a descrição deve ser feita em PORTUGUÊS. "]
[null,"- Coluna (referência do orçamento) - faça a correlação entre o item solicitado e o orçamento apresentado."]
[null,"- Coluna (moeda de origem) – indique a moeda de origem, como fornecido no orçamento do exportador/representante autorizado. "]
[null,"- Coluna (preço unitário) – valor unitário do item, na moeda de origem (indicar a moeda na coluna anterior). "]
[null,"- Coluna (custo do item-moeda original) - custo total parcial,na moeda de origem,do material solicitado em cada item. "]
[null,"    Não incluir despesas como embalagem. Frete interno, etc..,"]
[null,"- Coluna (custo do item - US$) conversão automática para dólar americano, do valor calculado na coluna anterior."]
[null,"- Coluna (FAPESP) – para uso exclusivo da FAPESP. "]
[]
[null," OBSERVAÇÕES:"]
[null,"1) Três orçamentos (não é necessário apresentar proformas na submissão) para cada um dos itens de Material Permanente Nacional ou Importado cujo\n valor supere dez  vezes o salário mínimo nacional. "]
[null,"2) Todo valor remetido ao exterior é deduzido dos recursos concedidos;"]
[null,"3 Justifique em anexo a utilidade de cada material solicitado para o desenvolvimento do projeto de pesquisa proposto;"]
[null,"4) Despesas com importação devem ser inseridas logo após a descrição de cada item (Ver exemplo abaixo)."]
[]
[null,"EXEMPLO",null,"TOTAL",null,{"$f":"SUM(Q173:Q176)","v":1567.3689999999999}]
[]
[null,"item","quant.","descrição (somente 1 linha para cada item)",null,null,null,null,null,null,null,"referência do orçamento","moeda de","preço","custo do item  moeda original",null,"custo do item",null,"FAPESP"]
[null,null,null,null,null,null,null,null,null,null,null,null,"origem","unitário",null,null,"US$",null,"CONCEDIDO?",null,"ALÍNEA"]
[null,1,1,"CUBA DE ELETROFORESE HORIZONTAL,  PROCEDÊNCIA ALEMÃ",null,null,null,null,null,null,null,null,"EUR",1000,{"$f":"N173*C173","v":1000},null,1240,null,"  NÃO"]
[null,"1a",2,"PENTE 30 DENTES,  MM ESPESSURA, PARA USO COM A CUBA ACIMA, PROC. ALEMÃ   ",null,null,null,null,null,null,null,null,"EUR",92,{"$f":"N174*C174","v":184},null,228.16900000000001,null,"  NÃO"]
[null,"1b",1,"PENTE 30 DENTES, 2 MM ESPESSURA PARA USO COM A CUBA ACIMA PROC. ALEMÃ   ",null,null,null,null,null,null,null,null,"EUR",40,{"$f":"N175*C175","v":40},null,49.6,null,"  NÃO"]
[null,"1c",1,"DESPESAS COM FRETE, EMBALAGEM, DOCUMENTAÇÃO    ",null,null,null,null,null,null,null,null,"EUR",40,{"$f":"N176*C176","v":40},null,49.6,null,"  NÃO"]
[null,{"$f":"B101","v":"- JUSTIFIQUE EM ANEXO A UTILIDADE DE CADA MATERIAL SOLICITADO PARA O DESENVOLVIMENTO DO PROJETO DE PESQUISA PROPOSTO.  "}]

{"sheet":"3-MCN","index":2,"n_rows":181,"n_cols":13,"rows_kept":181,"cut":false,"hidden":false,"merged":[[9,1,9,2],[9,3,9,5],[54,2,54,9],[22,2,22,9],[105,2,105,9],[106,2,106,9],[107,2,107,9],[108,2,108,9],[109,2,109,9],[72,2,72,9],[68,2,68,9],[69,2,69,9],[59,2,59,9],[60,2,60,9],[61,2,61,9],[52,2,53,9],[55,2,55,9],[43,2,43,9],[28,2,28,9],[29,2,29,9],[30,2,30,9],[52,1,53,1],[70,2,70,9],[65,2,65,9],[14,10,15,10],[17,2,17,9],[18,2,18,9],[19,2,19,9],[38,2,38,9],[14,11,14,12],[40,2,40,9],[41,2,41,9],[42,2,42,9],[11,1,11,2],[11,3,11,6],[32,2,32,9],[33,2,33,9],[44,2,44,9],[37,2,37,9],[34,2,34,9],[16,2,16,9],[35,2,35,9],[23,2,23,9],[24,2,24,9],[25,2,25,9],[14,1,15,1],[14,2,15,9],[20,2,20,9],[21,2,21,9],[177,2,177,9],[173,2,173,9],[174,2,174,9],[75,2,75,9],[169,4,169,5],[171,2,171,9],[160,1,160,11],[96,2,96,9],[157,1,157,11],[158,1,158,11],[156,1,156,11],[155,1,155,11],[162,1,162,11],[166,1,166,10],[130,1,130,12],[171,11,171,12],[79,2,79,9],[115,2,115,9],[116,2,116,9],[117,2,117,9],[93,2,94,9],[114,2,114,9],[176,2,176,9],[111,2,111,9],[56,2,56,9],[57,2,57,9],[58,2,58,9],[48,1,48,12],[52,11,52,12],[77,2,77,9],[71,2,71,9],[73,2,73,9],[93,1,94,1],[74,2,74,9],[112,2,112,9],[113,2,113,9],[110,2,110,9],[87,2,87,9],[95,2,95,9],[97,2,97,9],[98,2,98,9],[99,2,99,9],[100,2,100,9],[104,2,104,9],[127,2,127,9],[128,2,128,9],[167,1,167,11],[175,2,175,9],[39,2,39,9],[46,2,46,9],[31,2,31,9],[26,2,26,9],[27,2,27,9],[93,10,94,10],[80,2,80,9],[118,2,118,9],[119,2,119,9],[120,2,120,9],[121,2,121,9],[122,2,122,9],[123,2,123,9],[124,2,124,9],[125,2,125,9],[126,2,126,9],[66,2,66,9],[67,2,67,9],[45,2,45,9],[36,2,36,9],[7,4,7,12],[52,10,53,10],[179,1,179,12],[62,2,62,9],[63,2,63,9],[64,2,64,9],[101,2,101,9],[102,2,102,9],[103,2,103,9],[76,2,76,9],[78,2,78,9],[161,1,161,11],[153,1,153,11],[159,1,159,11],[150,1,150,11],[151,1,151,11],[84,2,84,9],[81,2,81,9],[86,2,86,9],[82,2,82,9],[85,2,85,9],[93,11,93,12],[89,1,89,12],[83,2,83,9]]}
[]
[]
[]
[]
[]
[null,"3- MATERIAL DE CONSUMO A SER ADQUIRIDO NO BRASIL"]
[]
[null,"NOME DO INTERESSADO:"]
[]
[null,"PROCESSO: "]
[]
[null,"TOTAL:  ",null,{"$f":"IF(SUM(K17:K47,K55:K88,K96:K129)=0,\"\",SUM(K17:K47,K55:K88,K96:K129))","v":""}]
[]
[]
[null,"item","descrição (somente 1 linha para cada item)",null,null,null,null,null,null,null,"custo do item ","FAPESP"]
[null,null,null,null,null,null,null,null,null,null,null,"CONCEDIDO?","ALÍNEA"]
[null,null,null,null,null,null,null,null,null,null,null,"        NÃO"]
[null,null,null,null,null,null,null,null,null,null,null,"        NÃO"]
[null,null,null,null,null,null,null,null,null,null,null,"        NÃO"]
[null,null,null,null,null,null,null,null,null,null,null,"        NÃO"]
[null,null,null,null,null,null,null,null,null,null,null,"        NÃO"]
[null,null,null,null,null,null,null,null,null,null,null,"        NÃO"]
[null,null,null,null,null,null,null,null,null,null,null,"        NÃO"]
[null,null,null,null,null,null,null,null,null,null,null,"        NÃO"]
[null,null,null,null,null,null,null,null,null,null,null,"        NÃO"]
[null,null,null,null,null,null,null,null,null,null,null,"        NÃO"]
[null,null,null,null,null,null,null,null,null,null,null,"        NÃO"]
[null,null,null,null,null,null,null,null,null,null,null,"        NÃO"]
[null,null,null,null,null,null,null,null,null,null,null,"        NÃO"]
[null,null,null,null,null,null,null,null,null,null,null,"        NÃO"]
[null,null,null,null,null,null,null,null,null,null,null,"        NÃO"]
[null,null,null,null,null,null,null,null,null,null,null,"        NÃO"]
[null,null,null,null,null,null,null,null,null,null,null,"        NÃO"]
[null,null,null,null,null,null,null,null,null,null,null,"        NÃO"]
[null,null,null,null,null,null,null,null,null,null,null,"        NÃO"]
[null,null,null,null,null,null,null,null,null,null,null,"        NÃO"]
[null,null,null,null,null,null,null,null,null,null,null,"        NÃO"]
[null,null,null,null,null,null,null,null,null,null,null,"        NÃO"]
[null,null,null,null,null,null,null,null,null,null,null,"        NÃO"]
[null,null,null,null,null,null,null,null,null,null,null,"        NÃO"]
[null,null,null,null,null,null,null,null,null,null,null,"        NÃO"]
[null,null,null,null,null,null,null,null,null,null,null,"        NÃO"]
[null,null,null,null,null,null,null,null,null,null,null,"        NÃO"]
[null,null,null,null,null,null,null,null,null,null,null,"        NÃO"]
[null,null,null,null,null,null,null,null,null,null,null,"        NÃO"]
[null,null,null,null,null,null,null,null,null,null,null,"        NÃO"]
[null,null,null,null,null,null,null,null,null,null,null,"        NÃO"]
[]
[null,"- JUSTIFIQUE EM ANEXO A UTILIDADE DE CADA MATERIAL SOLICITADO PARA O DESENVOLVIMENTO DO PROJETO DE PESQUISA"]
[null,{"$f":"'1-MPN'!B52","v":"FAPESP, AGOSTO DE 2017"},null,null,null,null,null,null,null,null,null,null,1]
[]
[null,{"$f":"B6","v":"3- MATERIAL DE CONSUMO A SER ADQUIRIDO NO BRASIL"}]
[null,"item","descrição (somente 1 linha para cada item)",null,null,null,null,null,null,null,"custo do item ","FAPESP"]
[null,null,null,null,null,null,null,null,null,null,null,"CONCEDIDO?","ALÍNEA"]
[null,null,null,null,null,null,null,null,null,null,null,"        NÃO"]
[null,null,null,null,null,null,null,null,null,null,null,"        NÃO"]
[null,null,null,null,null,null,null,null,null,null,null,"        NÃO"]
[null,null,null,null,null,null,null,null,null,null,null,"        NÃO"]
[null,null,null,null,null,null,null,null,null,null,null,"        NÃO"]
[null,null,null,null,null,null,null,null,null,null,null,"        NÃO"]
[null,null,null,null,null,null,null,null,null,null,null,"        NÃO"]
[null,null,null,null,null,null,null,null,null,null,null,"        NÃO"]
[null,null,null,null,null,null,null,null,null,null,null,"        NÃO"]
[null,null,null,null,null,null,null,null,null,null,null,"        NÃO"]
[null,null,null,null,null,null,null,null,null,null,null,"        NÃO"]
[null,null,null,null,null,null,null,null,null,null,null,"        NÃO"]
[null,null,null,null,null,null,null,null,null,null,null,"        NÃO"]
[null,null,null,null,null,null,null,null,null,null,null,"        NÃO"]
[null,null,null,null,null,null,null,null,null,null,null,"        NÃO"]
[null,null,null,null,null,null,null,null,null,null,null,"        NÃO"]
[null,null,null,null,null,null,null,null,null,null,null,"        NÃO"]
[null,null,null,null,null,null,null,null,null,null,null,"        NÃO"]
[null,null,null,null,null,null,null,null,null,null,null,"        NÃO"]
[null,null,null,null,null,null,null,null,null,null,null,"        NÃO"]
[null,null,null,null,null,null,null,null,null,null,null,"        NÃO"]
[null,null,null,null,null,null,null,null,null,null,null,"        NÃO"]
[null,null,null,null,null,null,null,null,null,null,null,"        NÃO"]
[null,null,null,null,null,null,null,null,null,null,null,"        NÃO"]
[null,null,null,null,null,null,null,null,null,null,null,"        NÃO"]
[null,null,null,null,null,null,null,null,null,null,null,"        NÃO"]
[null,null,null,null,null,null,null,null,null,null,null,"        NÃO"]
[null,null,null,null,null,null,null,null,null,null,null,"        NÃO"]
[null,null,null,null,null,null,null,null,null,null,null,"        NÃO"]
[null,null,null,null,null,null,null,null,null,null,null,"        NÃO"]
[null,null,null,null,null,null,null,null,null,null,null,"        NÃO"]
[null,null,null,null,null,null,null,null,null,null,null,"        NÃO"]
[null,null,null,null,null,null,null,null,null,null,null,"        NÃO"]
[null,null,null,null,null,null,null,null,null,null,null,"        NÃO"]
[]
[null,"- JUSTIFIQUE EM ANEXO A UTILIDADE DE CADA MATERIAL SOLICITADO PARA O DESENVOLVIMENTO DO PROJETO DE PESQUISA"]
[null,{"$f":"B50","v":"FAPESP, AGOSTO DE 2017"},null,null,null,null,null,null,null,null,null,null,2]
[]
[null,{"$f":"B52","v":"3- MATERIAL DE CONSUMO A SER ADQUIRIDO NO BRASIL"}]
[null,"item","descrição (somente 1 linha para cada item)",null,null,null,null,null,null,null,"custo do item ","FAPESP"]
[null,null,null,null,null,null,null,null,null,null,null,"CONCEDIDO?","ALÍNEA"]
[null,null,null,null,null,null,null,null,null,null,null,"        NÃO"]
[null,null,null,null,null,null,null,null,null,null,null,"        NÃO"]
[null,null,null,null,null,null,null,null,null,null,null,"        NÃO"]
[null,null,null,null,null,null,null,null,null,null,null,"        NÃO"]
[null,null,null,null,null,null,null,null,null,null,null,"        NÃO"]
[null,null,null,null,null,null,null,null,null,null,null,"        NÃO"]
[null,null,null,null,null,null,null,null,null,null,null,"        NÃO"]
[null,null,null,null,null,null,null,null,null,null,null,"        NÃO"]
[null,null,null,null,null,null,null,null,null,null,null,"        NÃO"]
[null,null,null,null,null,null,null,null,null,null,null,"        NÃO"]
[null,null,null,null,null,null,null,null,null,null,null,"        NÃO"]
[null,null,null,null,null,null,null,null,null,null,null,"        NÃO"]
[null,null,null,null,null,null,null,null,null,null,null,"        NÃO"]
[null,null,null,null,null,null,null,null,null,null,null,"        NÃO"]
[null,null,null,null,null,null,null,null,null,null,null,"        NÃO"]
[null,null,null,null,null,null,null,null,null,null,null,"        NÃO"]
[null,null,null,null,null,null,null,null,null,null,null,"        NÃO"]
[null,null,null,null,null,null,null,null,null,null,null,"        NÃO"]
[null,null,null,null,null,null,null,null,null,null,null,"        NÃO"]
[null,null,null,null,null,null,null,null,null,null,null,"        NÃO"]
[null,null,null,null,null,null,null,null,null,null,null,"        NÃO"]
[null,null,null,null,null,null,null,null,null,null,null,"        NÃO"]
[null,null,null,null,null,null,null,null,null,null,null,"        NÃO"]
[null,null,null,null,null,null,null,null,null,null,null,"        NÃO"]
[null,null,null,null,null,null,null,null,null,null,null,"        NÃO"]
[null,null,null,null,null,null,null,null,null,null,null,"        NÃO"]
[null,null,null,null,null,null,null,null,null,null,null,"        NÃO"]
[null,null,null,null,null,null,null,null,null,null,null,"        NÃO"]
[null,null,null,null,null,null,null,null,null,null,null,"        NÃO"]
[null,null,null,null,null,null,null,null,null,null,null,"        NÃO"]
[null,null,null,null,null,null,null,null,null,null,null,"        NÃO"]
[null,null,null,null,null,null,null,null,null,null,null,"        NÃO"]
[null,null,null,null,null,null,null,null,null,null,null,"        NÃO"]
[null,null,null,null,null,null,null,null,null,null,null,"        NÃO"]
[]
[null,"- JUSTIFIQUE EM ANEXO A UTILIDADE DE CADA MATERIAL SOLICITADO PARA O DESENVOLVIMENTO DO PROJETO DE PESQUISA"]
[null,{"$f":"B91","v":"FAPESP, AGOSTO DE 2017"},null,null,null,null,null,null,null,null,null,null,3]
[]
[]
[]
[]
[]
[]
[]
[]
[]
[]
[]
[]
[]
[null,"PARA IMPRIMIR A INSTRUÇÃO ABAIXO, SELECIONE A ÁREA A SER IMPRESSA"]
[null,"DIGITE \"CTRL\" P, E DEPOIS CLIQUE EM SELEÇÃO."]
[]
[]
[]
[null,"FORMULÁRIO 3 - INSTRUÇÕES PARA PREENCHIMENTO – LEIA ATENTAMENTE AS INSTRUÇÕES ABAIXO."]
[null,"MATERIAL DE CONSUMO A SER ADQUIRIDO NO BRASIL (MCN)"]
[]
[null,"NÃO SERÃO ACEITOS FORMULÁRIOS PREENCHIDOS EM DESACORDO COM ESTA INSTRUÇÃO"]
[]
[null,"- A FAPESP somente autoriza a aquisição de produtos para uso exclusivo na pesquisa/programa objeto desta solicitação, excluindo-se materiais de"]
[null,"   escritório, insumos computacionais, etc.  "]
[null,"- Não solicitar recursos sem especificar o que se pretende adquirir (Itens como \"diversos\", \"outros materiais\", etc., não serão considerados).  "]
[null,"- Os produtos devem ser agrupados por tipo, não havendo necessidade de detalhamento dos mesmos (Ver exemplo abaixo).  "]
[null,"- Coluna (item) - cada grupo de materiais  deve ser numerado seqüencialmente. Considere um item para cada grupo.  "]
[null,"- Coluna (decrição)- descreva o grupo de material que se pretende adquirir,como exemplificado abaixo. Toda a descrição deve ser feita em  PORTUGUÊS.  "]
[null,"- Coluna (custo do item) - custo total do material solicitado em cada item"]
[null,"- Coluna (FAPESP) - para uso exclusivo da FAPESP.  "]
[null," "]
[null," OBSERVAÇÕES"]
[]
[null,"1) Recomenda-se uma verificação de preços antes da solicitação, a fim de evitar alterações no decorrer do projeto e demoras indesejáveis."]
[null,"2) Justifique em anexo a utilidade de cada grupo de materiais solicitado para o desenvolvimento do projeto de pesquisa proposto.  "]
[]
[null," EXEMPLO ",null,"TOTAL:",{"$f":"SUM(K174:K178)","v":17400}]
[]
[null,"item","descrição (somente 1 linha para cada item)",null,null,null,null,null,null,null,null,"FAPESP"]
[null,null,null,null,null,null,null,null,null,null,null,"CONCEDIDO?","ALÍNEA"]
[null,1,"Vidraria para laboratório",null,null,null,null,null,null,null,2000,"        NÃO"]
[null,2,"Reagentes",null,null,null,null,null,null,null,3000,"        NÃO"]
[null,3,"Tubos para centrífuga",null,null,null,null,null,null,null,5000,"        NÃO"]
[null,4,"Material plástico descartável",null,null,null,null,null,null,null,800,"        NÃO"]
[null,5,"Material radioativo",null,null,null,null,null,null,null,6600,"        NÃO"]
[]
[null,"- JUSTIFIQUE EM ANEXO A UTILIDADE DE CADA MATERIAL SOLICITADO PARA O DESENVOLVIMENTO DO PROJETO DE PESQUISA"]
[null,{"$f":"B132","v":"FAPESP, AGOSTO DE 2017"}]

{"sheet":"4-MCI","index":3,"n_rows":179,"n_cols":23,"rows_kept":179,"cut":false,"hidden":false,"merged":[[85,13,85,15],[7,4,7,19],[69,16,69,17],[66,16,66,17],[27,16,27,17],[65,16,65,17],[62,2,62,11],[62,16,62,17],[63,2,63,11],[33,2,33,11],[33,16,33,17],[34,16,34,17],[32,2,32,11],[32,16,32,17],[63,16,63,17],[23,16,23,17],[25,16,25,17],[17,3,17,5],[9,3,9,5],[69,2,69,11],[70,2,70,11],[80,16,80,17],[81,2,81,11],[81,16,81,17],[82,16,82,17],[83,2,83,11],[83,16,83,17],[84,2,84,11],[83,13,83,15],[84,13,84,15],[30,13,30,15],[31,13,31,15],[51,1,52,1],[51,13,52,15],[79,2,79,11],[68,16,68,17],[76,2,76,11],[76,16,76,17],[73,16,73,17],[68,2,68,11],[66,2,66,11],[74,2,74,11],[74,16,74,17],[77,2,77,11],[77,16,77,17],[79,16,79,17],[35,13,35,15],[36,13,36,15],[87,1,87,19],[17,1,17,2],[40,16,40,17],[67,2,67,11],[67,16,67,17],[71,2,71,11],[73,2,73,11],[72,2,72,11],[70,16,70,17],[71,16,71,17],[72,16,72,17],[28,16,28,17],[30,16,30,17],[61,16,61,17],[54,16,54,17],[85,16,85,17],[82,2,82,11],[84,16,84,17],[85,2,85,11],[80,2,80,11],[22,2,22,11],[21,13,21,15],[29,2,29,11],[23,13,23,15],[22,13,22,15],[24,13,24,15],[25,13,25,15],[26,13,26,15],[27,13,27,15],[28,13,28,15],[29,13,29,15],[65,2,65,11],[28,2,28,11],[27,2,27,11],[51,12,52,12],[54,2,54,11],[40,2,40,11],[61,2,61,11],[34,2,34,11],[41,2,41,11],[42,2,42,11],[43,2,43,11],[44,2,44,11],[45,2,45,11],[46,2,46,11],[30,2,30,11],[33,13,33,15],[34,13,34,15],[174,2,174,11],[174,13,174,15],[44,16,44,17],[45,16,45,17],[37,16,37,17],[64,16,64,17],[60,2,60,11],[60,16,60,17],[56,2,56,11],[49,16,49,19],[57,2,57,11],[57,16,57,17],[53,2,53,11],[55,2,55,11],[55,16,55,17],[56,16,56,17],[53,16,53,17],[51,18,51,19],[51,2,52,11],[64,2,64,11],[75,2,75,11],[75,16,75,17],[78,2,78,11],[78,16,78,17],[173,2,173,11],[173,16,173,17],[170,13,170,15],[88,16,88,19],[139,1,139,19],[140,1,140,19],[172,16,172,17],[172,13,172,15],[171,13,171,15],[168,2,169,11],[168,1,169,1],[168,12,169,12],[168,13,169,15],[168,16,169,17],[171,16,171,17],[170,2,170,11],[170,16,170,17],[142,1,142,19],[168,18,168,19],[1,16,1,19],[58,2,58,11],[58,16,58,17],[59,2,59,11],[59,16,59,17],[46,16,46,17],[48,1,48,19],[41,16,41,17],[42,16,42,17],[35,2,35,11],[23,2,23,11],[26,2,26,11],[26,16,26,17],[24,2,24,11],[21,2,21,11],[21,16,21,17],[19,12,20,12],[22,16,22,17],[37,2,37,11],[51,16,52,17],[43,16,43,17],[19,1,20,1],[19,2,20,11],[25,2,25,11],[24,16,24,17],[19,13,20,15],[19,16,20,17],[19,18,19,19],[177,1,177,19],[29,16,29,17],[31,2,31,11],[35,16,35,17],[31,16,31,17],[38,2,38,11],[38,16,38,17],[39,2,39,11],[39,16,39,17],[36,2,36,11],[36,16,36,17],[166,2,166,3],[175,13,175,15],[174,16,174,17],[173,13,173,15],[175,2,175,11],[175,16,175,17],[172,2,172,11],[171,2,171,11],[32,13,32,15],[37,13,37,15],[38,13,38,15],[39,13,39,15],[40,13,40,15],[41,13,41,15],[42,13,42,15],[43,13,43,15],[44,13,44,15],[45,13,45,15],[46,13,46,15],[53,13,53,15],[54,13,54,15],[55,13,55,15],[56,13,56,15],[57,13,57,15],[58,13,58,15],[59,13,59,15],[60,13,60,15],[61,13,61,15],[62,13,62,15],[63,13,63,15],[64,13,64,15],[65,13,65,15],[66,13,66,15],[67,13,67,15],[68,13,68,15],[69,13,69,15],[79,13,79,15],[80,13,80,15],[81,13,81,15],[82,13,82,15],[70,13,70,15],[71,13,71,15],[72,13,72,15],[73,13,73,15],[74,13,74,15],[75,13,75,15],[76,13,76,15],[77,13,77,15],[78,13,78,15]]}
["MM"]
[]
[]
[]
[]
[null,"4- MATERIAL DE CONSUMO IMPORTADO"]
[]
[null,"NOME DO INTERESSADO:"]
[]
[null,"PROCESSO:"]
[]
[null,"CÂMBIO (INFORME A SIGLA DA MOEDA E O VALOR DE SUA TAXA EM DÓLAR)"]
[]
[null,"MOEDA 1:","USD","TAXA:",1,null,null,"MOEDA 2:",null,"TAXA:",null,null,null,null,"MOEDA 3:",null,"TAXA:"]
[]
[null,"MOEDA 4:",null,"TAXA:",null,null,null,"MOEDA 5:",null,"TAXA:",null,null,null,null,"MOEDA 6:",null,"TAXA:"]
[]
[null,"TOTAL:",null,{"$f":"IF(SUM(Q22:R47,Q54:R86)=0,\"\",SUM(Q22:R47,Q54:R86))","v":""}]
[]
[null,"item","descrição (somente 1 linha para cada item)",null,null,null,null,null,null,null,null,null,"moeda de origem","custo do item moeda original",null,null,"custo do item US$",null,"FAPESP"]
[null,null,null,null,null,null,null,null,null,null,null,null,null,null,null,null,null,null,"CONCEDIDO?","ALÍNEA"]
[null,null,null,null,null,null,null,null,null,null,null,null,null,null,null,null,{"$f":"IF(ISERROR(INDEX($W$22:$W$27,MATCH(M22,$V$22:$V$27,0))*N22),\"\",INDEX($W$22:$W$27,MATCH(M22,$V$22:$V$27,0))*N22)","v":""},null,"     NÃO",null,null,{"$f":"IF($C$14=0,\"\",C$14)","v":"USD"},{"$f":"IF(E14=0,\"\",E14)","v":1}]
[null,null,null,null,null,null,null,null,null,null,null,null,null,null,null,null,{"$f":"IF(ISERROR(INDEX($W$22:$W$27,MATCH(M23,$V$22:$V$27,0))*N23),\"\",INDEX($W$22:$W$27,MATCH(M23,$V$22:$V$27,0))*N23)","v":""},null,"     NÃO",null,null,{"$f":"IF($I$14=0,\"\",$I$14)","v":""},{"$f":"IF(K14=0,\"\",K14)","v":""}]
[null,null,null,null,null,null,null,null,null,null,null,null,null,null,null,null,"",null,"     NÃO",null,null,{"$f":"IF($P$14=0,\"\",$P$14)","v":""},{"$f":"IF(R14=0,\"\",R14)","v":""}]
[null,null,null,null,null,null,null,null,null,null,null,null,null,null,null,null,"",null,"     NÃO",null,null,{"$f":"IF($C$16=0,\"\",$C$16)","v":""},{"$f":"IF(E16=0,\"\",E16)","v":""}]
[null,null,null,null,null,null,null,null,null,null,null,null,null,null,null,null,"",null,"     NÃO",null,null,{"$f":"IF(I16=0,\"\",I16)","v":""},{"$f":"IF(K16=0,\"\",K16)","v":""}]
[null,null,null,null,null,null,null,null,null,null,null,null,null,null,null,null,"",null,"     NÃO",null,null,{"$f":"IF($P$16=0,\"\",$P$16)","v":""},{"$f":"IF(R16=0,\"\",R16)","v":""}]
[null,null,null,null,null,null,null,null,null,null,null,null,null,null,null,null,"",null,"     NÃO"]
[null,null,null,null,null,null,null,null,null,null,null,null,null,null,null,null,"",null,"     NÃO"]
[null,null,null,null,null,null,null,null,null,null,null,null,null,null,null,null,"",null,"     NÃO"]
[null,null,null,null,null,null,null,null,null,null,null,null,null,null,null,null,"",null,"     NÃO"]
[null,null,null,null,null,null,null,null,null,null,null,null,null,null,null,null,"",null,"     NÃO"]
[null,null,null,null,null,null,null,null,null,null,null,null,null,null,null,null,"",null,"     NÃO"]
[null,null,null,null,null,null,null,null,null,null,null,null,null,null,null,null,"",null,"     NÃO"]
[null,null,null,null,null,null,null,null,null,null,null,null,null,null,null,null,"",null,"     NÃO"]
[null,null,null,null,null,null,null,null,null,null,null,null,null,null,null,null,"",null,"     NÃO"]
[null,null,null,null,null,null,null,null,null,null,null,null,null,null,null,null,"",null,"     NÃO"]
[null,null,null,null,null,null,null,null,null,null,null,null,null,null,null,null,"",null,"     NÃO"]
[null,null,null,null,null,null,null,null,null,null,null,null,null,null,null,null,"",null,"     NÃO"]
[null,null,null,null,null,null,null,null,null,null,null,null,null,null,null,null,"",null,"     NÃO"]
[null,null,null,null,null,null,null,null,null,null,null,null,null,null,null,null,"",null,"     NÃO"]
[null,null,null,null,null,null,null,null,null,null,null,null,null,null,null,null,"",null,"     NÃO"]
[null,null,null,null,null,null,null,null,null,null,null,null,null,null,null,null,"",null,"     NÃO"]
[null,null,null,null,null,null,null,null,null,null,null,null,null,null,null,null,"",null,"     NÃO"]
[null,null,null,null,null,null,null,null,null,null,null,null,null,null,null,null,"",null,"     NÃO"]
[null,null,null,null,null,null,null,null,null,null,null,null,null,null,null,null,"",null,"     NÃO"]
[null,null,null,null,null,null,null,null,null,null,null,null,null,null,null,null,"",null,"     NÃO"]
[]
[null,"- JUSTIFIQUE EM ANEXO A UTILIDADE DE CADA MATERIAL SOLICITADO PARA O DESENVOLVIMENTO DO PROJETO DE PESQUISA"]
[null,{"$f":"'3-MCN'!B50","v":"FAPESP, AGOSTO DE 2017"},null,null,null,null,null,null,null,null,null,null,null,null,null,null,1]
[null,{"$f":"B6","v":"4- MATERIAL DE CONSUMO IMPORTADO"}]
[null,"item","descrição (somente 1 linha para cada item)",null,null,null,null,null,null,null,null,null,"moeda de origem","custo do item moeda original",null,null,"custo do item US$",null,"FAPESP"]
[null,null,null,null,null,null,null,null,null,null,null,null,null,null,null,null,null,null,"CONCEDIDO?","ALÍNEA"]
[null,null,null,null,null,null,null,null,null,null,null,null,null,null,null,null,{"$f":"IF(ISERROR(INDEX($W$22:$W$27,MATCH(M54,$V$22:$V$27,0))*N54),\"\",INDEX($W$22:$W$27,MATCH(M54,$V$22:$V$27,0))*N54)","v":""},null,"     NÃO"]
[null,null,null,null,null,null,null,null,null,null,null,null,null,null,null,null,"",null,"     NÃO"]
[null,null,null,null,null,null,null,null,null,null,null,null,null,null,null,null,"",null,"     NÃO"]
[null,null,null,null,null,null,null,null,null,null,null,null,null,null,null,null,"",null,"     NÃO"]
[null,null,null,null,null,null,null,null,null,null,null,null,null,null,null,null,"",null,"     NÃO"]
[null,null,null,null,null,null,null,null,null,null,null,null,null,null,null,null,"",null,"     NÃO"]
[null,null,null,null,null,null,null,null,null,null,null,null,null,null,null,null,"",null,"     NÃO"]
[null,null,null,null,null,null,null,null,null,null,null,null,null,null,null,null,"",null,"     NÃO"]
[null,null,null,null,null,null,null,null,null,null,null,null,null,null,null,null,"",null,"     NÃO"]
[null,null,null,null,null,null,null,null,null,null,null,null,null,null,null,null,"",null,"     NÃO"]
[null,null,null,null,null,null,null,null,null,null,null,null,null,null,null,null,"",null,"     NÃO"]
[null,null,null,null,null,null,null,null,null,null,null,null,null,null,null,null,"",null,"     NÃO"]
[null,null,null,null,null,null,null,null,null,null,null,null,null,null,null,null,"",null,"     NÃO"]
[null,null,null,null,null,null,null,null,null,null,null,null,null,null,null,null,"",null,"     NÃO"]
[null,null,null,null,null,null,null,null,null,null,null,null,null,null,null,null,"",null,"     NÃO"]
[null,null,null,null,null,null,null,null,null,null,null,null,null,null,null,null,"",null,"     NÃO"]
[null,null,null,null,null,null,null,null,null,null,null,null,null,null,null,null,"",null,"     NÃO"]
[null,null,null,null,null,null,null,null,null,null,null,null,null,null,null,null,"",null,"     NÃO"]
[null,null,null,null,null,null,null,null,null,null,null,null,null,null,null,null,"",null,"     NÃO"]
[null,null,null,null,null,null,null,null,null,null,null,null,null,null,null,null,"",null,"     NÃO"]
[null,null,null,null,null,null,null,null,null,null,null,null,null,null,null,null,"",null,"     NÃO"]
[null,null,null,null,null,null,null,null,null,null,null,null,null,null,null,null,"",null,"     NÃO"]
[null,null,null,null,null,null,null,null,null,null,null,null,null,null,null,null,"",null,"     NÃO"]
[null,null,null,null,null,null,null,null,null,null,null,null,null,null,null,null,"",null,"     NÃO"]
[null,null,null,null,null,null,null,null,null,null,null,null,null,null,null,null,"",null,"     NÃO"]
[null,null,null,null,null,null,null,null,null,null,null,null,null,null,null,null,"",null,"     NÃO"]
[null,null,null,null,null,null,null,null,null,null,null,null,null,null,null,null,"",null,"     NÃO"]
[null,null,null,null,null,null,null,null,null,null,null,null,null,null,null,null,"",null,"     NÃO"]
[null,null,null,null,null,null,null,null,null,null,null,null,null,null,null,null,"",null,"     NÃO"]
[null,null,null,null,null,null,null,null,null,null,null,null,null,null,null,null,"",null,"     NÃO"]
[null,null,null,null,null,null,null,null,null,null,null,null,null,null,null,null,"",null,"     NÃO"]
[null,null,null,null,null,null,null,null,null,null,null,null,null,null,null,null,"",null,"     NÃO"]
[null,null,null,null,null,null,null,null,null,null,null,null,null,null,null,null,"",null,"     NÃO"]
[]
[null,"- JUSTIFIQUE EM ANEXO A UTILIDADE DE CADA MATERIAL SOLICITADO PARA O DESENVOLVIMENTO DO PROJETO DE PESQUISA"]
[null,{"$f":"B50","v":"FAPESP, AGOSTO DE 2017"},null,null,null,null,null,null,null,null,null,null,null,null,null,null,2]
[]
[]
[]
[]
[]
[]
[]
[]
[]
[]
[]
[]
[]
[]
[]
[]
[]
[]
[]
[]
[]
[]
[]
[]
[]
[]
[]
[]
[]
[]
[]
[]
[]
[]
[]
[]
[]
[]
[]
[]
[]
[]
[]
[]
[]
[null,"PARA IMPRIMIR A INSTRUÇÃO ABAIXO, SELECIONE A ÁREA A SER IMPRESSA"]
[null,"DIGITE \"CTRL\" P, E DEPOIS CLIQUE EM SELEÇÃO."]
[]
[]
[]
[null,"FORMULÁRIO 4 - INSTRUÇÕES PARA PREENCHIMENTO – LEIA ATENTAMENTE AS INSTRUÇÕES ABAIXO."]
[null,"MATERIAL DE CONSUMO IMPORTADO (MCI) "]
[]
[null,"NÃO SERÃO ACEITOS FORMULÁRIOS PREENCHIDOS EM DESACORDO COM ESTA INSTRUÇÃO"]
[]
[null,"- A FAPESP somente autoriza a aquisição de produtos para uso exclusivo na pesquisa/programa objeto desta solicitação, excluindo-se materiais de escritório, insumos"]
[null,"   computacionais, etc."]
[null,"- Não solicitar recursos sem especificar o que se pretende adquirir (itens como \"diversos\", \"outros materiais\", etc, não serão considerados)."]
[null,"- Os produtos devem ser agrupados por tipo, não havendo necessidade de detalhamento dos mesmos."]
[null,"- Coluna (item) -  cada grupo de materiais deve ser numerado sequencialmente. Considere um item para cada grupo."]
[null,"- Coluna (descrição) - descreva o grupo de material que se pretende adquirir. Descreva despesas cobradas pelo exportador (ex.: embalagem, documentação, etc)."]
[null,"   Toda a descrição deve ser feita em  PORTUGUÊS, (Ver exemplo abaixo). "]
[null,"- Coluna (moeda de origem) -  indique a moeda de origem, como fornecido no orçamento do exportador/representante autorizado.  "]
[null,"- Coluna (custo do item - moeda original) -  custo total do material solicitado em cada item a moeda original."]
[null,"- Coluna (custo do item US$) -  conversão automática para dólar americano, do valor informado na coluna anterior."]
[null,"- Coluna (FAPESP) - para uso exclusivo da FAPESP."]
[]
[null," OBSERVAÇÕES: "]
[null,"1) Todo o valor remetido ao exterior é deduzido dos recursos concedidos; "]
[null,"2) Justifique em anexo a utilidade de cada grupo de material solicitado para o desenvolvimento do projeto de pesquisa proposto."]
[]
[null,"EXEMPLO :"]
[]
[null,"CÂMBIO (DIGITE A SIGLA DA MOEDA E O VALOR DE SUA TAXA EM DÓLAR)"]
[]
[null,"MOEDA 1:","USD","TAXA:",1,null,null,"MOEDA 2:","DEM","TAXA:",1.83487,null,null,null,"MOEDA 3:","GBP","TAXA:",1.74]
[]
[null,"TOTAL",{"$f":"SUM(Q171:R176)","v":76128.756300000008}]
[]
[null,"item","descrição (somente 1 linha para cada item)",null,null,null,null,null,null,null,null,null,"moeda de origem","custo do item moeda original",null,null,"custo do item US$",null,"FAPESP"]
[null,null,null,null,null,null,null,null,null,null,null,null,null,null,null,null,null,null,"CONCEDIDO?","ALÍNEA"]
[null,1,"Vidraria, procedência alemã",null,null,null,null,null,null,null,null,null,"DEM",10000,null,null,{"$f":"N171*$K$165","v":18348.7},null,"     NÃO"]
[null,"1a","Despesas com frete, embalagem, documentação",null,null,null,null,null,null,null,null,null,"DEM",{"$f":"N171-1234","v":8766},null,null,16084.47042,null,"     NÃO"]
[null,2,"Vidraria, procedência americana",null,null,null,null,null,null,null,null,null,"USD",{"$f":"N172-1234","v":7532},null,null,13820.24084,null,"     NÃO"]
[null,"2a","Despesas com frete, embalagem, documentação",null,null,null,null,null,null,null,null,null,"USD",{"$f":"N173-1234","v":6298},null,null,11556.011259999999,null,"     NÃO"]
[null,3,"Isótopos radiotivos, procedência inglesa",null,null,null,null,null,null,null,null,null,"GBP",{"$f":"N174-1234","v":5064},null,null,9291.7816800000001,null,"     NÃO"]
[null,"3a","Despesas com frete, embalagem, documentação",null,null,null,null,null,null,null,null,null,"GBP",{"$f":"N175-1234","v":3830},null,null,7027.5520999999999,null,"     NÃO"]
[]
[null,"- JUSTIFIQUE EM ANEXO A UTILIDADE DE CADA MATERIAL SOLICITADO PARA O DESENVOLVIMENTO DO PROJETO DE PESQUISA"]
[null,{"$f":"B89","v":"FAPESP, AGOSTO DE 2017"}]

{"sheet":"5-STB","index":4,"n_rows":180,"n_cols":17,"rows_kept":180,"cut":false,"hidden":false,"merged":[[7,5,7,16],[11,3,11,5],[44,1,44,2],[45,1,45,2],[45,4,45,12],[79,1,79,2],[84,1,84,2],[53,1,53,2],[52,1,52,2],[59,4,59,12],[52,4,52,12],[54,1,54,2],[54,4,54,12],[55,1,55,2],[55,4,55,12],[56,1,56,2],[56,4,56,12],[59,1,59,2],[9,4,9,6],[29,4,29,12],[30,4,30,12],[33,4,33,12],[37,4,37,12],[38,1,38,2],[38,4,38,12],[27,1,27,2],[25,1,25,2],[31,1,31,2],[30,1,30,2],[11,1,11,2],[15,4,15,12],[16,4,16,12],[17,4,17,12],[16,1,16,2],[17,1,17,2],[18,4,18,12],[15,1,15,2],[18,1,18,2],[19,1,19,2],[19,4,19,12],[24,4,24,12],[25,4,25,12],[26,4,26,12],[27,4,27,12],[168,1,168,2],[169,1,169,2],[170,1,170,2],[149,1,149,16],[169,4,169,12],[170,4,170,12],[60,4,60,12],[85,4,85,12],[66,4,66,12],[67,4,67,12],[68,4,68,12],[69,4,69,12],[61,4,61,12],[66,1,66,2],[65,1,65,2],[65,4,65,12],[67,1,67,2],[70,1,70,2],[71,1,71,2],[78,4,78,12],[168,4,168,12],[166,13,167,13],[166,1,167,2],[166,3,167,3],[166,4,167,12],[166,14,167,14],[81,4,81,12],[82,4,82,12],[85,1,85,2],[81,1,81,2],[82,1,82,2],[83,1,83,2],[146,1,146,16],[147,1,147,16],[88,14,88,16],[83,4,83,12],[84,4,84,12],[164,4,164,5],[166,15,166,16],[53,4,53,12],[63,4,63,12],[79,4,79,12],[80,1,80,2],[68,1,68,2],[72,4,72,12],[80,4,80,12],[78,1,78,2],[72,1,72,2],[73,1,73,2],[71,4,71,12],[70,4,70,12],[77,4,77,12],[73,4,73,12],[74,4,74,12],[75,4,75,12],[76,4,76,12],[76,1,76,2],[75,1,75,2],[77,1,77,2],[69,1,69,2],[74,1,74,2],[64,1,64,2],[64,4,64,12],[61,1,61,2],[63,1,63,2],[57,1,57,2],[57,4,57,12],[58,1,58,2],[58,4,58,12],[60,1,60,2],[62,1,62,2],[62,4,62,12],[43,1,43,2],[48,14,48,16],[36,1,36,2],[36,4,36,12],[37,1,37,2],[35,1,35,2],[35,4,35,12],[21,4,21,12],[20,1,20,2],[20,4,20,12],[21,1,21,2],[39,1,39,2],[41,1,41,2],[41,4,41,12],[23,4,23,12],[31,4,31,12],[32,4,32,12],[34,1,34,2],[34,4,34,12],[42,1,42,2],[42,4,42,12],[29,1,29,2],[28,1,28,2],[26,1,26,2],[13,15,13,16],[50,15,50,16],[22,4,22,12],[13,1,14,2],[13,3,14,3],[13,4,14,12],[23,1,23,2],[22,1,22,2],[28,4,28,12],[50,1,51,2],[13,14,14,14],[50,13,51,13],[50,14,51,14],[50,3,51,3],[50,4,51,12],[39,4,39,12],[40,1,40,2],[40,4,40,12],[44,4,44,12],[43,4,43,12],[13,13,14,13],[24,1,24,2],[33,1,33,2],[32,1,32,2]]}
[]
[]
[]
[]
[]
[null,"5- SERVIÇOS DE TERCEIROS NO BRASIL"]
[]
[null,"NOME DO INTERESSADO:"]
[]
[null,"PROCESSO: "]
[]
[null,"TOTAL:",null,{"$f":"IF(SUM(O16:O46,O53:O86)=0,\"\",SUM(O16:O46,O53:O86))","v":""}]
[]
[null,"item",null,"quant.","descrição (somente 1 linha para cada item)",null,null,null,null,null,null,null,null,"preço unitário","custo do item","FAPESP"]
[null,null,null,null,null,null,null,null,null,null,null,null,null,null,null,"CONCEDIDO?","ALÍNEA"]
[null,null,null,null,null,null,null,null,null,null,null,null,null,null,{"$f":"IF(N16*D16=0,\"\",N16*D16)","v":""},"      NÃO"]
[null,null,null,null,null,null,null,null,null,null,null,null,null,null,"","      NÃO"]
[null,null,null,null,null,null,null,null,null,null,null,null,null,null,"","      NÃO"]
[null,null,null,null,null,null,null,null,null,null,null,null,null,null,"","      NÃO"]
[null,null,null,null,null,null,null,null,null,null,null,null,null,null,"","      NÃO"]
[null,null,null,null,null,null,null,null,null,null,null,null,null,null,"","      NÃO"]
[null,null,null,null,null,null,null,null,null,null,null,null,null,null,"","      NÃO"]
[null,null,null,null,null,null,null,null,null,null,null,null,null,null,"","      NÃO"]
[null,null,null,null,null,null,null,null,null,null,null,null,null,null,"","      NÃO"]
[null,null,null,null,null,null,null,null,null,null,null,null,null,null,"","      NÃO"]
[null,null,null,null,null,null,null,null,null,null,null,null,null,null,"","      NÃO"]
[null,null,null,null,null,null,null,null,null,null,null,null,null,null,"","      NÃO"]
[null,null,null,null,null,null,null,null,null,null,null,null,null,null,"","      NÃO"]
[null,null,null,null,null,null,null,null,null,null,null,null,null,null,"","      NÃO"]
[null,null,null,null,null,null,null,null,null,null,null,null,null,null,"","      NÃO"]
[null,null,null,null,null,null,null,null,null,null,null,null,null,null,"","      NÃO"]
[null,null,null,null,null,null,null,null,null,null,null,null,null,null,"","      NÃO"]
[null,null,null,null,null,null,null,null,null,null,null,null,null,null,"","      NÃO"]
[null,null,null,null,null,null,null,null,null,null,null,null,null,null,"","      NÃO"]
[null,null,null,null,null,null,null,null,null,null,null,null,null,null,"","      NÃO"]
[null,null,null,null,null,null,null,null,null,null,null,null,null,null,"","      NÃO"]
[null,null,null,null,null,null,null,null,null,null,null,null,null,null,"","      NÃO"]
[null,null,null,null,null,null,null,null,null,null,null,null,null,null,"","      NÃO"]
[null,null,null,null,null,null,null,null,null,null,null,null,null,null,"","      NÃO"]
[null,null,null,null,null,null,null,null,null,null,null,null,null,null,"","      NÃO"]
[null,null,null,null,null,null,null,null,null,null,null,null,null,null,"","      NÃO"]
[null,null,null,null,null,null,null,null,null,null,null,null,null,null,"","      NÃO"]
[null,null,null,null,null,null,null,null,null,null,null,null,null,null,"","      NÃO"]
[null,null,null,null,null,null,null,null,null,null,null,null,null,null,"","      NÃO"]
[null,null,null,null,null,null,null,null,null,null,null,null,null,null,"","      NÃO"]
[null,null,null,null,null,null,null,null,null,null,null,null,null,null,"","      NÃO"]
[]
[null,"- JUSTIFIQUE EM ANEXO A UTILIDADE DOS SERVIÇOS SOLICITADOS PARA O DESENVOLVIMENTO DO PROJETO DE PESQUISA"]
[null,{"$f":"'1-MPN'!B52","v":"FAPESP, AGOSTO DE 2017"},null,null,null,null,null,null,null,null,null,null,null,null,1]
[null,{"$f":"B6","v":"5- SERVIÇOS DE TERCEIROS NO BRASIL"}]
[null,"Item",null,"Quant.","descrição (somente 1 linha para cada item)",null,null,null,null,null,null,null,null,"preço unitário","custo do item","FAPESP"]
[null,null,null,null,null,null,null,null,null,null,null,null,null,null,null,"CONCEDIDO?","ALÍNEA"]
[null,null,null,null,null,null,null,null,null,null,null,null,null,null,{"$f":"IF(N53*D53=0,\"\",N53*D53)","v":""},"      NÃO"]
[null,null,null,null,null,null,null,null,null,null,null,null,null,null,"","      NÃO"]
[null,null,null,null,null,null,null,null,null,null,null,null,null,null,"","      NÃO"]
[null,null,null,null,null,null,null,null,null,null,null,null,null,null,"","      NÃO"]
[null,null,null,null,null,null,null,null,null,null,null,null,null,null,"","      NÃO"]
[null,null,null,null,null,null,null,null,null,null,null,null,null,null,"","      NÃO"]
[null,null,null,null,null,null,null,null,null,null,null,null,null,null,"","      NÃO"]
[null,null,null,null,null,null,null,null,null,null,null,null,null,null,"","      NÃO"]
[null,null,null,null,null,null,null,null,null,null,null,null,null,null,"","      NÃO"]
[null,null,null,null,null,null,null,null,null,null,null,null,null,null,"","      NÃO"]
[null,null,null,null,null,null,null,null,null,null,null,null,null,null,"","      NÃO"]
[null,null,null,null,null,null,null,null,null,null,null,null,null,null,"","      NÃO"]
[null,null,null,null,null,null,null,null,null,null,null,null,null,null,"","      NÃO"]
[null,null,null,null,null,null,null,null,null,null,null,null,null,null,"","      NÃO"]
[null,null,null,null,null,null,null,null,null,null,null,null,null,null,"","      NÃO"]
[null,null,null,null,null,null,null,null,null,null,null,null,null,null,"","      NÃO"]
[null,null,null,null,null,null,null,null,null,null,null,null,null,null,"","      NÃO"]
[null,null,null,null,null,null,null,null,null,null,null,null,null,null,"","      NÃO"]
[null,null,null,null,null,null,null,null,null,null,null,null,null,null,"","      NÃO"]
[null,null,null,null,null,null,null,null,null,null,null,null,null,null,"","      NÃO"]
[null,null,null,null,null,null,null,null,null,null,null,null,null,null,"","      NÃO"]
[null,null,null,null,null,null,null,null,null,null,null,null,null,null,"","      NÃO"]
[null,null,null,null,null,null,null,null,null,null,null,null,null,null,"","      NÃO"]
[null,null,null,null,null,null,null,null,null,null,null,null,null,null,"","      NÃO"]
[null,null,null,null,null,null,null,null,null,null,null,null,null,null,"","      NÃO"]
[null,null,null,null,null,null,null,null,null,null,null,null,null,null,"","      NÃO"]
[null,null,null,null,null,null,null,null,null,null,null,null,null,null,"","      NÃO"]
[null,null,null,null,null,null,null,null,null,null,null,null,null,null,"","      NÃO"]
[null,null,null,null,null,null,null,null,null,null,null,null,null,null,"","      NÃO"]
[null,null,null,null,null,null,null,null,null,null,null,null,null,null,"","      NÃO"]
[null,null,null,null,null,null,null,null,null,null,null,null,null,null,"","      NÃO"]
[null,null,null,null,null,null,null,null,null,null,null,null,null,null,"","      NÃO"]
[null,null,null,null,null,null,null,null,null,null,null,null,null,null,"","      NÃO"]
[null,null,null,null,null,null,null,null,null,null,null,null,null,null,"","      NÃO"]
[]
[null,"- JUSTIFIQUE EM ANEXO A UTILIDADE DOS SERVIÇOS SOLICITADOS PARA O DESENVOLVIMENTO DO PROJETO DE PESQUISA"]
[null,{"$f":"B49","v":"FAPESP, AGOSTO DE 2017"},null,null,null,null,null,null,null,null,null,null,null,null,2]
[]
[]
[]
[]
[]
[]
[]
[]
[]
[]
[]
[]
[]
[]
[]
[]
[]
[]
[]
[]
[]
[]
[]
[]
[]
[]
[]
[]
[]
[]
[]
[]
[]
[]
[]
[]
[]
[]
[]
[]
[]
[]
[]
[]
[]
[]
[]
[]
[]
[]
[]
[]
[null,"PARA IMPRIMIR A INSTRUÇÃO ABAIXO, SELECIONE A ÁREA A SER IMPRESSA"]
[null,"DIGITE \"CTRL\" P, E DEPOIS CLIQUE EM SELEÇÃO."]
[]
[]
[]
[null,"FORMULÁRIO 5 - INSTRUÇÕES PARA PREENCHIMENTO – LEIA ATENTAMENTE AS INSTRUÇÕES ABAIXO."]
[null,"SERVIÇOS DE TERCEIROS NO BRASIL (STB)"]
[]
[null,"NÃO SERÃO ACEITOS FORMULÁRIOS PREENCHIDOS EM DESACORDO COM ESTA INSTRUÇÃO"]
[]
[null," - Somente são analisadas solicitações de recursos para serviços especializados e de curta duração. Não incluir salários de qualquer natureza, bolsas no País ou no exterior,"]
[null,"   serviços administrativos ou contratos para manutenção de equipamentos."]
[null," - Coluna (item) - cada tipo de serviço deve ser numerado seqüencialmente. (ver exemplo abaixo)."]
[null," - Coluna (quant.) - quantidade de cada serviço, quando possível  "]
[null," - Coluna (descrição) - descrição detalhada do serviço e executor a ser contratado.  Toda a descrição deve ser feita em  PORTUGUÊS.  "]
[null," - Coluna (preço unitário) - valor unitário em moeda nacional.  "]
[null," - Coluna (custo do item)  - custo total de cada item solicitado, em moeda nacional. (a totalização desta coluna é automática).  "]
[null," - Coluna (FAPESP) - para uso exclusivo da FAPESP.  "]
[]
[null," OBSERVAÇÕES: "]
[null,"1) Para a contratação de recursos humanos de apoio à pesquisa, ver  Programa FAPESP de Capacitação Técnica.  "]
[null,"2) Justifique em anexo a utilidade de cada um dos serviços solicitados para o desenvolvimento do projeto de pesquisa proposto.  "]
[null," "]
[null," EXEMPLO  ",null,"TOTAL",{"$f":"SUM(O169:O171)","v":11800}]
[]
[null,"item",null,"quant.","descrição (somente 1 linha para cada item)",null,null,null,null,null,null,null,null,"preço unitário","custo do item","FAPESP"]
[null,null,null,null,null,null,null,null,null,null,null,null,null,null,null,"CONCEDIDO?","ALÍNEA"]
[null,1,null,1,"Ensaios em campo e em casas de vegetação para obtenção das sementes a serem realizadas pelo instituto.",null,null,null,null,null,null,null,null,4000,{"$f":"N169*D169","v":4000},"      NÃO"]
[null,2,null,30,"Horas de uso da microssonda do Instituto ..........",null,null,null,null,null,null,null,null,240,{"$f":"N170*D170","v":7200},"      NÃO"]
[null,3,null,1,"Conserto do evaporador, a ser realizado pela empresa .......",null,null,null,null,null,null,null,null,600,{"$f":"N171*D171","v":600},"      NÃO"]
[]
[null,"- JUSTIFIQUE EM ANEXO A UTILIDADE DOS SERVIÇOS SOLICITADOS PARA O DESENVOLVIMENTO DO PROJETO DE PESQUISA"]
[]
[]
[]
[]
[]
[]
[null,{"$f":"B89","v":"FAPESP, AGOSTO DE 2017"}]

{"sheet":"6-STE","index":5,"n_rows":179,"n_cols":20,"rows_kept":179,"cut":false,"hidden":false,"merged":[[92,12,92,13],[7,5,7,16],[16,3,16,5],[78,12,78,13],[79,3,79,9],[79,12,79,13],[80,3,80,9],[80,12,80,13],[56,3,56,9],[59,12,59,13],[54,12,55,13],[54,14,55,14],[76,12,76,13],[18,14,19,14],[34,12,34,13],[28,3,28,9],[28,12,28,13],[29,3,29,9],[29,12,29,13],[26,12,26,13],[18,12,19,13],[42,12,42,13],[41,12,41,13],[36,3,36,9],[144,1,144,14],[143,1,143,14],[92,3,92,9],[83,3,83,9],[87,12,87,13],[39,12,39,13],[40,3,40,9],[40,12,40,13],[71,3,71,9],[71,12,71,13],[72,3,72,9],[72,12,72,13],[85,3,85,9],[85,12,85,13],[65,12,65,13],[66,12,66,13],[58,12,58,13],[56,12,56,13],[43,12,43,13],[60,12,60,13],[61,12,61,13],[59,3,59,9],[62,12,62,13],[63,12,63,13],[67,12,67,13],[69,3,69,9],[69,12,69,13],[68,12,68,13],[67,3,67,9],[57,12,57,13],[57,3,57,9],[33,3,33,9],[24,3,24,9],[24,12,24,13],[31,3,31,9],[66,3,66,9],[64,3,64,9],[21,12,21,13],[30,3,30,9],[30,12,30,13],[27,12,27,13],[22,3,22,9],[54,2,55,2],[54,3,55,9],[54,10,55,10],[54,11,55,11],[36,12,36,13],[44,12,44,13],[44,3,44,9],[49,12,49,13],[9,1,9,2],[9,3,9,5],[26,3,26,9],[27,3,27,9],[62,3,62,9],[58,3,58,9],[25,3,25,9],[16,1,16,2],[18,1,19,1],[18,2,19,2],[18,3,19,9],[54,1,55,1],[42,3,42,9],[20,3,20,9],[21,3,21,9],[18,10,19,10],[65,3,65,9],[39,3,39,9],[32,3,32,9],[60,3,60,9],[43,3,43,9],[18,11,19,11],[22,12,22,13],[23,3,23,9],[23,12,23,13],[33,12,33,13],[25,12,25,13],[31,12,31,13],[32,12,32,13],[34,3,34,9],[48,3,48,9],[45,3,45,9],[48,12,48,13],[47,3,47,9],[46,3,46,9],[45,12,45,13],[35,12,35,13],[35,3,35,9],[20,12,20,13],[177,1,177,16],[168,1,168,2],[172,12,172,13],[172,3,172,9],[175,3,175,9],[174,3,174,9],[173,12,173,13],[174,12,174,13],[175,12,175,13],[170,1,171,1],[170,2,171,2],[170,3,171,9],[170,14,171,14],[170,12,171,13],[170,11,171,11],[170,10,171,10],[91,12,91,13],[73,12,73,13],[74,12,74,13],[75,12,75,13],[170,15,170,16],[168,3,168,4],[78,3,78,9],[68,3,68,9],[84,12,84,13],[81,3,81,9],[81,12,81,13],[86,3,86,9],[86,12,86,13],[82,12,82,13],[70,12,70,13],[73,3,73,9],[74,3,74,9],[84,3,84,9],[88,12,88,13],[146,1,146,16],[90,3,90,9],[90,12,90,13],[88,3,88,9],[91,3,91,9],[18,15,18,16],[54,15,54,16],[173,3,173,9],[75,3,75,9],[76,3,76,9],[77,3,77,9],[82,3,82,9],[70,3,70,9],[83,12,83,13],[77,12,77,13],[64,12,64,13],[61,3,61,9],[49,3,49,9],[37,3,37,9],[37,12,37,13],[38,3,38,9],[38,12,38,13],[46,12,46,13],[47,12,47,13],[41,3,41,9],[89,3,89,9],[89,12,89,13],[87,3,87,9],[63,3,63,9]]}
[]
[]
[]
[]
[null,null,null,null,null,null,null,null,null,null,null,null,""]
[null,"6- SERVIÇOS DE TERCEIROS NO EXTERIOR"]
[]
[null,"NOME DO INTERESSADO:"]
[]
[null,"PROCESSO:"]
[]
[null,"CÂMBIO (DIGITE A SIGLA DA MOEDA E O VALOR DE SUA TAXA EM DÓLAR)"]
[null,"MOEDA 1:","USD","TAXA:",1,null,"MOEDA 2:",null,"TAXA:",null,null,"MOEDA 3:",null,"TAXA:"]
[]
[null,"MOEDA 4:",null,"TAXA:",null,null,"MOEDA 5:",null,"TAXA:",null,null,"MOEDA 6:",null,"TAXA:"]
[]
[null,"TOTAL",null,{"$f":"IF(SUM(O21:O50,O57:O93)=0,\"\",SUM(O21:O50,O57:O93))","v":""}]
[]
[null,"item","quant.","descrição (somente 1 linha para cada item)",null,null,null,null,null,null,"moeda de origem","preço unitário","custo do item moeda original",null,"custo do item US$","FAPESP"]
[null,null,null,null,null,null,null,null,null,null,null,null,null,null,null,"CONCEDIDO?","ALÍNEA"]
[null,null,null,null,null,null,null,null,null,null,null,null,{"$f":"IF(C21*L21=0,\"\",C21*L21)","v":""},null,{"$f":"IF(ISERROR(INDEX($T$21:$T$26,MATCH(K21,$S$21:$S$26,0))*M21),\"\",INDEX($T$21:$T$26,MATCH(K21,$S$21:$S$26,0))*M21)","v":""},"       NÃO",null,null,{"$f":"IF($C$13=0,\"\",$C$13)","v":"USD"},{"$f":"$E$13","v":1}]
[null,null,null,null,null,null,null,null,null,null,null,null,{"$f":"IF(C22*L22=0,\"\",C22*L22)","v":""},null,{"$f":"IF(ISERROR(INDEX($T$21:$T$26,MATCH(K22,$S$21:$S$26,0))*M22),\"\",INDEX($T$21:$T$26,MATCH(K22,$S$21:$S$26,0))*M22)","v":""},"       NÃO",null,null,{"$f":"IF($H$13=0,\"\",$H$13)","v":""},{"$f":"$J$13","v":0}]
[null,null,null,null,null,null,null,null,null,null,null,null,"",null,"","       NÃO",null,null,{"$f":"IF($M$13=0,\"\",$M$13)","v":""},{"$f":"$O$13","v":0}]
[null,null,null,null,null,null,null,null,null,null,null,null,"",null,"","       NÃO",null,null,{"$f":"IF($C$15=0,\"\",$C$15)","v":""},{"$f":"$E$15","v":0}]
[null,null,null,null,null,null,null,null,null,null,null,null,"",null,"","       NÃO",null,null,{"$f":"IF($H$15=0,\"\")","v":""},{"$f":"$J$15","v":0}]
[null,null,null,null,null,null,null,null,null,null,null,null,"",null,"","       NÃO",null,null,{"$f":"IF($M$15=0,\"\",$M$15)","v":""},{"$f":"$O$15","v":0}]
[null,null,null,null,null,null,null,null,null,null,null,null,"",null,"","       NÃO"]
[null,null,null,null,null,null,null,null,null,null,null,null,"",null,"","       NÃO"]
[null,null,null,null,null,null,null,null,null,null,null,null,"",null,"","       NÃO"]
[null,null,null,null,null,null,null,null,null,null,null,null,"",null,"","       NÃO"]
[null,null,null,null,null,null,null,null,null,null,null,null,"",null,"","       NÃO"]
[null,null,null,null,null,null,null,null,null,null,null,null,"",null,"","       NÃO"]
[null,null,null,null,null,null,null,null,null,null,null,null,"",null,"","       NÃO"]
[null,null,null,null,null,null,null,null,null,null,null,null,"",null,"","       NÃO"]
[null,null,null,null,null,null,null,null,null,null,null,null,"",null,"","       NÃO"]
[null,null,null,null,null,null,null,null,null,null,null,null,"",null,"","       NÃO"]
[null,null,null,null,null,null,null,null,null,null,null,null,"",null,"","       NÃO"]
[null,null,null,null,null,null,null,null,null,null,null,null,"",null,"","       NÃO"]
[null,null,null,null,null,null,null,null,null,null,null,null,"",null,"","       NÃO"]
[null,null,null,null,null,null,null,null,null,null,null,null,"",null,"","       NÃO"]
[null,null,null,null,null,null,null,null,null,null,null,null,"",null,"","       NÃO"]
[null,null,null,null,null,null,null,null,null,null,null,null,"",null,"","       NÃO"]
[null,null,null,null,null,null,null,null,null,null,null,null,"",null,"","       NÃO"]
[null,null,null,null,null,null,null,null,null,null,null,null,"",null,"","       NÃO"]
[null,null,null,null,null,null,null,null,null,null,null,null,"",null,"","       NÃO"]
[null,null,null,null,null,null,null,null,null,null,null,null,"",null,"","       NÃO"]
[null,null,null,null,null,null,null,null,null,null,null,null,"",null,"","       NÃO"]
[null,null,null,null,null,null,null,null,null,null,null,null,"",null,"","       NÃO"]
[null,null,null,null,null,null,null,null,null,null,null,null,"",null,"","       NÃO"]
[null,null,null,null,null,null,null,null,null,null,null,null,"",null,"","       NÃO"]
[]
[null,"- JUSTIFIQUE EM ANEXO A UTILIDADE DOS SERVIÇOS  SOLICITADOS PARA O DESENVOLVIMENTO DO PROJETO DE PESQUISA"]
[null,{"$f":"'5-STB'!B89","v":"FAPESP, AGOSTO DE 2017"},null,null,null,null,null,null,null,null,null,null,null,null,null,null,1]
[null,{"$f":"B6","v":"6- SERVIÇOS DE TERCEIROS NO EXTERIOR"}]
[null,"item","quant.","descrição (somente 1 linha para cada item)",null,null,null,null,null,null,"moeda de origem","preço unitário","custo do item moeda original",null,"custo do item US$","FAPESP"]
[null,null,null,null,null,null,null,null,null,null,null,null,null,null,null,"CONCEDIDO?","ALÍNEA"]
[null,null,null,null,null,null,null,null,null,null,null,null,{"$f":"IF(C57*L57=0,\"\",C57*L57)","v":""},null,{"$f":"IF(ISERROR(INDEX($T$21:$T$26,MATCH(K57,$S$21:$S$26,0))*M57),\"\",INDEX($T$21:$T$26,MATCH(K57,$S$21:$S$26,0))*M57)","v":""},"       NÃO"]
[null,null,null,null,null,null,null,null,null,null,null,null,"",null,{"$f":"IF(ISERROR(INDEX($T$21:$T$26,MATCH(K58,$S$21:$S$26,0))*M58),\"\",INDEX($T$21:$T$26,MATCH(K58,$S$21:$S$26,0))*M58)","v":""},"       NÃO"]
[null,null,null,null,null,null,null,null,null,null,null,null,"",null,"","       NÃO"]
[null,null,null,null,null,null,null,null,null,null,null,null,"",null,"","       NÃO"]
[null,null,null,null,null,null,null,null,null,null,null,null,"",null,"","       NÃO"]
[null,null,null,null,null,null,null,null,null,null,null,null,"",null,"","       NÃO"]
[null,null,null,null,null,null,null,null,null,null,null,null,"",null,"","       NÃO"]
[null,null,null,null,null,null,null,null,null,null,null,null,"",null,"","       NÃO"]
[null,null,null,null,null,null,null,null,null,null,null,null,"",null,"","       NÃO"]
[null,null,null,null,null,null,null,null,null,null,null,null,"",null,"","       NÃO"]
[null,null,null,null,null,null,null,null,null,null,null,null,"",null,"","       NÃO"]
[null,null,null,null,null,null,null,null,null,null,null,null,"",null,"","       NÃO"]
[null,null,null,null,null,null,null,null,null,null,null,null,"",null,"","       NÃO"]
[null,null,null,null,null,null,null,null,null,null,null,null,"",null,"","       NÃO"]
[null,null,null,null,null,null,null,null,null,null,null,null,"",null,"","       NÃO"]
[null,null,null,null,null,null,null,null,null,null,null,null,"",null,"","       NÃO"]
[null,null,null,null,null,null,null,null,null,null,null,null,"",null,"","       NÃO"]
[null,null,null,null,null,null,null,null,null,null,null,null,"",null,"","       NÃO"]
[null,null,null,null,null,null,null,null,null,null,null,null,"",null,"","       NÃO"]
[null,null,null,null,null,null,null,null,null,null,null,null,"",null,"","       NÃO"]
[null,null,null,null,null,null,null,null,null,null,null,null,"",null,"","       NÃO"]
[null,null,null,null,null,null,null,null,null,null,null,null,"",null,"","       NÃO"]
[null,null,null,null,null,null,null,null,null,null,null,null,"",null,"","       NÃO"]
[null,null,null,null,null,null,null,null,null,null,null,null,"",null,"","       NÃO"]
[null,null,null,null,null,null,null,null,null,null,null,null,"",null,"","       NÃO"]
[null,null,null,null,null,null,null,null,null,null,null,null,"",null,"","       NÃO"]
[null,null,null,null,null,null,null,null,null,null,null,null,"",null,"","       NÃO"]
[null,null,null,null,null,null,null,null,null,null,null,null,"",null,"","       NÃO"]
[null,null,null,null,null,null,null,null,null,null,null,null,"",null,"","       NÃO"]
[null,null,null,null,null,null,null,null,null,null,null,null,"",null,"","       NÃO"]
[null,null,null,null,null,null,null,null,null,null,null,null,"",null,"","       NÃO"]
[null,null,null,null,null,null,null,null,null,null,null,null,"",null,"","       NÃO"]
[null,null,null,null,null,null,null,null,null,null,null,null,"",null,"","       NÃO"]
[null,null,null,null,null,null,null,null,null,null,null,null,"",null,"","       NÃO"]
[null,null,null,null,null,null,null,null,null,null,null,null,"",null,"","       NÃO"]
[null,null,null,null,null,null,null,null,null,null,null,null,"",null,"","       NÃO"]
[null,null,null,null,null,null,null,null,null,null,null,null,"",null,"","       NÃO"]
[]
[null,"- JUSTIFIQUE EM ANEXO A UTILIDADE DOS SERVIÇOS  SOLICITADOS PARA O DESENVOLVIMENTO DO PROJETO DE PESQUISA"]
[null,{"$f":"B53","v":"FAPESP, AGOSTO DE 2017"},null,null,null,null,null,null,null,null,null,null,null,null,null,null,2]
[]
[]
[]
[]
[]
[]
[]
[]
[]
[]
[]
[]
[]
[]
[]
[]
[]
[]
[]
[]
[]
[]
[]
[]
[]
[]
[]
[]
[]
[]
[]
[]
[]
[]
[]
[]
[]
[]
[]
[]
[]
[]
[null,"PARA IMPRIMIR A INSTRUÇÃO ABAIXO, SELECIONE A ÁREA A SER IMPRESSA"]
[null,"DIGITE \"CTRL\" P, E DEPOIS CLIQUE EM SELEÇÃO."]
[]
[]
[]
[null,"FORMULÁRIO 6 - INSTRUÇÕES PARA PREENCHIMENTO – LEIA ATENTAMENTE AS INSTRUÇÕES ABAIXO."]
[null,"SERVIÇOS DE TERCEIROS A SEREM CONTRATADOS NO EXTERIOR (STE)"]
[]
[null,"NÃO SERÃO ACEITOS FORMULÁRIOS PREENCHIDOS EM DESACORDO COM ESTA INSTRUÇÃO"]
[null,"- Somente são analisadas solicitações de recursos para serviços especializados e de curta duração. Não incluir salários de qualquer natureza, bolsas no País ou no exterior,"]
[null,"  serviços administrativos ou contratos  para manutenção de equipamentos. "]
[null,"- Coluna (item) - cada tipo de serviço deve ser numerado seqüencialmente. (Ver exemplo abaixo). "]
[null,"- Coluna (quant.) - quantidade de cada serviço, quando possível. "]
[null,"- Coluna (descrição) - descrição detalhada do serviço e executor a ser contratado. Descreva despesas cobradas pelo executor (ex.: embalagem, documentação, etc), "]
[null,"  toda a descrição  deve ser feita em  PORTUGUÊS, (ver exemplo abaixo). "]
[null,"- Coluna (moeda de origem) - indique a moeda de origem. "]
[null,"- Coluna (preço do item) - valor unitário na moeda de origem (indicar moeda na coluna anterior). "]
[null,"- Coluna (custo do item - moeda original) - custo total, na moeda de origem,  de cada item solicitado. "]
[null,"- Coluna (custo do item - US$) -  conversão automática para o dólar americano, do valor lançado na Coluna custo do item. "]
[null,"- Coluna (FAPESP) - para uso exclusivo da FAPESP "]
[null," OBSERVAÇÕES: "]
[null,"1) Para a contratação de recursos humanos de apoio à pesquisa, ver Programa FAPESP de Capacitação Técnica;  "]
[null,"2) Justifique em anexo a utilidade de cada um dos serviços solicitados para o desenvolvimento do projeto de pesquisa proposto;  "]
[null,"3) Todo o valor remetido ao exterior é deduzido dos recursos concedidos. "]
[null,"EXEMPLO "]
[]
[null,"CÂMBIO (DIGITE A SIGLA DA MOEDA E O VALOR DE SUA TAXA EM DÓLAR)"]
[]
[null,"MOEDA 1:","USD","TAXA:",1,null,"MOEDA 2:","EUR","TAXA",1.24,null,"MOEDA 3:","GBP","TAXA:",1.78]
[]
[null,"TOTAL",null,{"$f":"SUM(O173:O176)","v":2389.3799999999997}]
[]
[null,"item","quant.","descrição (somente 1 linha para cada item)",null,null,null,null,null,null,"moeda de origem","preço unitário","custo do item moeda original",null,"custo do item US$","FAPESP"]
[null,null,null,null,null,null,null,null,null,null,null,null,null,null,null,"CONCEDIDO?","ALÍNEA",null,{"$f":"S21","v":"USD"},{"$f":"T21","v":1}]
[null,1,1,"Reparo de equipamento a ser feito pela empresa... Na Alemanha",null,null,null,null,null,null,"USD",1200,{"$f":"C173*L173","v":1200},null,{"$f":"IF(M173<>0,INDEX($T$172:$T$175,MATCH(K173,$S$172:$S$175,0))*M173,\"\")","v":1200},"       NÃO",null,null,"EUR",{"$f":"J167","v":1.24}]
[null,"1a",1,"Despesas com frete, embalagem, documentação",null,null,null,null,null,null,"EUR",240,{"$f":"C174*L174","v":240},null,{"$f":"M174*J167","v":297.60000000000002},"       NÃO",null,null,"GBP",{"$f":"O167","v":1.78}]
[null,2,1,"Análise de amostras de ... a  serem realizadas pelo Laboratório, ... na Inglaterra",null,null,null,null,null,null,"GBP",456,{"$f":"C175*L175","v":456},null,{"$f":"IF(M175<>0,INDEX($T$172:$T$175,MATCH(K175,$S$172:$S$175,0))*M175,\"\")","v":811.68000000000006},"       NÃO",null,null,{"$f":"S24","v":""},0]
[null,"2a",1,"Despesas com frete, embalagem, documentação",null,null,null,null,null,null,"GBP",45,{"$f":"C176*L176","v":45},null,{"$f":"IF(M176<>0,INDEX($T$172:$T$175,MATCH(K176,$S$172:$S$175,0))*M176,\"\")","v":80.099999999999994},"       NÃO",null,null,{"$f":"S25","v":""},0]
[]
[null,"- JUSTIFIQUE EM ANEXO A UTILIDADE DOS SERVIÇOS  SOLICITADOS PARA O DESENVOLVIMENTO DO PROJETO DE PESQUISA"]
[null,{"$f":"B96","v":"FAPESP, AGOSTO DE 2017"}]

{"sheet":"7-TRAN","index":6,"n_rows":170,"n_cols":17,"rows_kept":170,"cut":false,"hidden":false,"merged":[[79,1,79,2],[79,4,79,12],[35,4,35,12],[36,1,36,2],[36,4,36,12],[80,1,80,2],[80,4,80,12],[81,1,81,2],[81,4,81,12],[77,1,77,2],[65,1,65,2],[65,4,65,12],[60,4,60,12],[55,1,55,2],[55,4,55,12],[57,4,57,12],[56,1,56,2],[56,4,56,12],[57,1,57,2],[45,1,45,4],[44,1,44,16],[52,1,52,2],[52,4,52,12],[48,1,49,2],[78,1,78,2],[69,1,69,2],[69,4,69,12],[66,4,66,12],[61,4,61,12],[64,4,64,12],[64,1,64,2],[62,1,62,2],[62,4,62,12],[61,1,61,2],[67,1,67,2],[67,4,67,12],[68,1,68,2],[68,4,68,12],[78,4,78,12],[70,1,70,2],[28,1,28,2],[40,1,40,2],[40,4,40,12],[29,1,29,2],[29,4,29,12],[30,1,30,2],[30,4,30,12],[31,1,31,2],[32,1,32,2],[32,4,32,12],[37,1,37,2],[37,4,37,12],[31,4,31,12],[41,1,41,2],[41,4,41,12],[42,1,42,2],[42,4,42,12],[66,1,66,2],[58,1,58,2],[58,4,58,12],[63,1,63,2],[63,4,63,12],[51,4,51,12],[54,1,54,2],[53,4,53,12],[59,1,59,2],[59,4,59,12],[60,1,60,2],[48,3,49,3],[48,4,49,12],[166,1,166,2],[163,4,163,12],[164,4,164,12],[165,4,165,12],[166,4,166,12],[50,1,50,2],[51,1,51,2],[50,4,50,12],[76,1,76,2],[76,4,76,12],[74,1,74,2],[74,4,74,12],[75,1,75,2],[75,4,75,12],[54,4,54,12],[53,1,53,2],[73,1,73,2],[73,4,73,12],[70,4,70,12],[71,1,71,2],[71,4,71,12],[72,1,72,2],[72,4,72,12],[77,4,77,12],[161,1,161,2],[163,1,163,2],[164,1,164,2],[161,4,161,12],[84,1,84,4],[141,1,141,16],[143,1,143,16],[140,1,140,16],[165,1,165,2],[159,4,159,5],[17,4,17,12],[18,4,18,12],[19,4,19,12],[38,1,38,2],[38,4,38,12],[39,1,39,2],[39,4,39,12],[34,1,34,2],[34,4,34,12],[35,1,35,2],[20,4,20,12],[21,4,21,12],[21,1,21,2],[20,1,20,2],[24,4,24,12],[25,1,25,2],[25,4,25,12],[26,1,26,2],[26,4,26,12],[27,1,27,2],[27,4,27,12],[28,4,28,12],[33,1,33,2],[33,4,33,12],[48,13,49,13],[48,14,49,14],[48,15,48,16],[161,15,161,16],[7,5,7,16],[16,1,16,2],[19,1,19,2],[12,1,12,2],[12,3,12,6],[14,15,14,16],[14,1,15,2],[14,3,15,3],[14,4,15,12],[14,13,15,13],[14,14,15,14],[23,1,23,2],[23,4,23,12],[24,1,24,2],[9,4,9,6],[16,4,16,12],[22,1,22,2],[22,4,22,12],[17,1,17,2],[18,1,18,2]]}
[]
[]
[]
[]
[]
[null,"7- DESPESAS DE TRANSPORTE"]
[]
[null,"NOME DO INTERESSADO:"]
[]
[null,"PROCESSO: "]
[]
[]
[null,"TOTAL:",null,{"$f":"IF(SUM(O17:O43:O51:O82)=0,\"\",SUM(O17:O43:O51:O82))","v":""}]
[]
[null,"item",null,"quant.","descrição (somente 1 linha para cada item)",null,null,null,null,null,null,null,null,"preço unitário","custo do item","FAPESP"]
[null,null,null,null,null,null,null,null,null,null,null,null,null,null,null,"CONCEDIDO?","ALÍNEA"]
[null,null,null,null,null,null,null,null,null,null,null,null,null,null,{"$f":"IF(N17*D17=0,\"\",N17*D17)","v":""},"      NÃO"]
[null,null,null,null,null,null,null,null,null,null,null,null,null,null,"","      NÃO"]
[null,null,null,null,null,null,null,null,null,null,null,null,null,null,"","      NÃO"]
[null,null,null,null,null,null,null,null,null,null,null,null,null,null,"","      NÃO"]
[null,null,null,null,null,null,null,null,null,null,null,null,null,null,"","      NÃO"]
[null,null,null,null,null,null,null,null,null,null,null,null,null,null,"","      NÃO"]
[null,null,null,null,null,null,null,null,null,null,null,null,null,null,"","      NÃO"]
[null,null,null,null,null,null,null,null,null,null,null,null,null,null,"","      NÃO"]
[null,null,null,null,null,null,null,null,null,null,null,null,null,null,"","      NÃO"]
[null,null,null,null,null,null,null,null,null,null,null,null,null,null,"","      NÃO"]
[null,null,null,null,null,null,null,null,null,null,null,null,null,null,"","      NÃO"]
[null,null,null,null,null,null,null,null,null,null,null,null,null,null,"","      NÃO"]
[null,null,null,null,null,null,null,null,null,null,null,null,null,null,"","      NÃO"]
[null,null,null,null,null,null,null,null,null,null,null,null,null,null,"","      NÃO"]
[null,null,null,null,null,null,null,null,null,null,null,null,null,null,"","      NÃO"]
[null,null,null,null,null,null,null,null,null,null,null,null,null,null,"","      NÃO"]
[null,null,null,null,null,null,null,null,null,null,null,null,null,null,"","      NÃO"]
[null,null,null,null,null,null,null,null,null,null,null,null,null,null,"","      NÃO"]
[null,null,null,null,null,null,null,null,null,null,null,null,null,null,"","      NÃO"]
[null,null,null,null,null,null,null,null,null,null,null,null,null,null,"","      NÃO"]
[null,null,null,null,null,null,null,null,null,null,null,null,null,null,"","      NÃO"]
[null,null,null,null,null,null,null,null,null,null,null,null,null,null,"","      NÃO"]
[null,null,null,null,null,null,null,null,null,null,null,null,null,null,"","      NÃO"]
[null,null,null,null,null,null,null,null,null,null,null,null,null,null,"","      NÃO"]
[null,null,null,null,null,null,null,null,null,null,null,null,null,null,"","      NÃO"]
[null,null,null,null,null,null,null,null,null,null,null,null,null,null,"","      NÃO"]
[null,null,null,null,null,null,null,null,null,null,null,null,null,null,"","      NÃO"]
[]
[null,"- JUSTIFIQUE EM ANEXO A UTILIDADE DE CADA ITEM SOLICITADO PARA O DESENVOLVIMENTO DO PROJETO DE PESQUISA"]
[null,{"$f":"'1-MPN'!B52","v":"FAPESP, AGOSTO DE 2017"},null,null,null,null,null,null,null,null,null,null,null,null,null,null,1]
[]
[null,{"$f":"B6","v":"7- DESPESAS DE TRANSPORTE"}]
[null,"item",null,"quant.","descrição (somente 1 linha para cada item)",null,null,null,null,null,null,null,null,"preço unitário","custo do item","FAPESP"]
[null,null,null,null,null,null,null,null,null,null,null,null,null,null,null,"CONCEDIDO?","ALÍNEA"]
[null,null,null,null,null,null,null,null,null,null,null,null,null,null,{"$f":"IF(N51*D51=0,\"\",N51*D51)","v":""},"      NÃO"]
[null,null,null,null,null,null,null,null,null,null,null,null,null,null,"","      NÃO"]
[null,null,null,null,null,null,null,null,null,null,null,null,null,null,"","      NÃO"]
[null,null,null,null,null,null,null,null,null,null,null,null,null,null,"","      NÃO"]
[null,null,null,null,null,null,null,null,null,null,null,null,null,null,"","      NÃO"]
[null,null,null,null,null,null,null,null,null,null,null,null,null,null,"","      NÃO"]
[null,null,null,null,null,null,null,null,null,null,null,null,null,null,"","      NÃO"]
[null,null,null,null,null,null,null,null,null,null,null,null,null,null,"","      NÃO"]
[null,null,null,null,null,null,null,null,null,null,null,null,null,null,"","      NÃO"]
[null,null,null,null,null,null,null,null,null,null,null,null,null,null,"","      NÃO"]
[null,null,null,null,null,null,null,null,null,null,null,null,null,null,"","      NÃO"]
[null,null,null,null,null,null,null,null,null,null,null,null,null,null,"","      NÃO"]
[null,null,null,null,null,null,null,null,null,null,null,null,null,null,"","      NÃO"]
[null,null,null,null,null,null,null,null,null,null,null,null,null,null,"","      NÃO"]
[null,null,null,null,null,null,null,null,null,null,null,null,null,null,"","      NÃO"]
[null,null,null,null,null,null,null,null,null,null,null,null,null,null,"","      NÃO"]
[null,null,null,null,null,null,null,null,null,null,null,null,null,null,"","      NÃO"]
[null,null,null,null,null,null,null,null,null,null,null,null,null,null,"","      NÃO"]
[null,null,null,null,null,null,null,null,null,null,null,null,null,null,"","      NÃO"]
[null,null,null,null,null,null,null,null,null,null,null,null,null,null,"","      NÃO"]
[null,null,null,null,null,null,null,null,null,null,null,null,null,null,"","      NÃO"]
[null,null,null,null,null,null,null,null,null,null,null,null,null,null,"","      NÃO"]
[null,null,null,null,null,null,null,null,null,null,null,null,null,null,"","      NÃO"]
[null,null,null,null,null,null,null,null,null,null,null,null,null,null,"","      NÃO"]
[null,null,null,null,null,null,null,null,null,null,null,null,null,null,"","      NÃO"]
[null,null,null,null,null,null,null,null,null,null,null,null,null,null,"","      NÃO"]
[null,null,null,null,null,null,null,null,null,null,null,null,null,null,"","      NÃO"]
[null,null,null,null,null,null,null,null,null,null,null,null,null,null,"","      NÃO"]
[null,null,null,null,null,null,null,null,null,null,null,null,null,null,"","      NÃO"]
[null,null,null,null,null,null,null,null,null,null,null,null,null,null,"","      NÃO"]
[null,null,null,null,null,null,null,null,null,null,null,null,null,null,"","      NÃO"]
[null,null,null,null,null,null,null,null,null,null,null,null,null,null,"","      NÃO"]
[]
[null,"- JUSTIFIQUE EM ANEXO A UTILIDADE DE CADA ITEM SOLICITADO PARA O DESENVOLVIMENTO DO PROJETO DE PESQUISA"]
[null,{"$f":"B46","v":"FAPESP, AGOSTO DE 2017"},null,null,null,null,null,null,null,null,null,null,null,null,null,null,2]
[]
[]
[]
[]
[]
[]
[]
[]
[]
[]
[]
[]
[]
[]
[]
[]
[]
[]
[]
[]
[]
[]
[]
[]
[]
[]
[]
[]
[]
[]
[]
[]
[]
[]
[]
[]
[]
[]
[]
[]
[]
[]
[]
[]
[]
[]
[]
[]
[]
[]
[null,"PARA IMPRIMIR A INSTRUÇÃO ABAIXO, SELECIONE A ÁREA A SER IMPRESSA"]
[null,"DIGITE \"CTRL\" P, E DEPOIS CLIQUE EM SELEÇÃO."]
[]
[]
[]
[null,"FORMULÁRIO 7 - INSTRUÇÕES PARA PREENCHIMENTO – LEIA ATENTAMENTE AS INSTRUÇÕES ABAIXO."]
[null,"DESPESAS DE TRANSPORTE (DET)"]
[]
[null,"NÃO SERÃO ACEITOS FORMULÁRIOS PREENCHIDOS EM DESACORDO COM ESTA INSTRUÇÃO"]
[]
[null,"- Apresente somente orçamento de recursos necessários para a realização de pesquisa de campo, passagens, combustível, etc., para transporte de pessoas."]
[null,"- Inclua percurso, meio de transporte e nome do usuário dos recursos. Transporte de bens, são considerados Serviços de Terceiros.  "]
[null,"- Coluna (item) - cada viagem deve ser numerada seqüencialmente (ver exemplo abaixo).  "]
[null,"- Coluna (quant.) - quantidade de viagens a serem realizadas em um mesmo percurso, por uma mesma pessoa.  "]
[null,"- Coluna (descrição) - descreva o percurso a ser realizado, o meio de transporte a ser utilizado e indique quem realizará a viagem."]
[null,"- Coluna (preço unitário) - valor unitário em moeda nacional.  "]
[null,"- Coluna (custo do item) - custo total das viagens solicitadas em cada item, em moeda nacional. (a totalização desta coluna é automática)."]
[null,"- Coluna (FAPESP) - para uso exclusivo da FAPESP.  "]
[null," OBSERVAÇÕES:"]
[null,"1) Auxílios para a vinda de pesquisador visitante, realização de estágios, participação em reunião, etc., devem ser solicitados em processo separado, nas modalidades "]
[null,"    específicas para cada finalidade e de acordo com as regras em vigor."]
[null,"2) Para a contratação de recursos humanos de apoio à pesquisa, ver Programa FAPESP de Capacitação Técnica.  "]
[null,"3) Justifique em anexo a utilidade de cada item solicitado para o desenvolvimento do projeto de pesquisa proposto. "]
[]
[null," EXEMPLO",null,"TOTAL",{"$f":"SUM(O164:Q167)","v":4900}]
[]
[null,"item",null,"quant.","descrição (somente 1 linha para cada item)",null,null,null,null,null,null,null,null,"preço unitário","custo do item","FAPESP"]
[null,null,null,null,null,null,null,null,null,null,null,null,null,null,null,"CONCEDIDO?","ALÍNEA"]
[null,1,null,1,"Aluguel de ônibus, para o percurso São Carlos/São Paulo/São Carlos (Aux.Org.)",null,null,null,null,null,null,null,null,500,{"$f":"(N164*D164)","v":500},"      NÃO"]
[null,2,null,2,"Passagens aéreas SP/Rio de Janeiro/SP a serem utilizadas por João da Silva, em pesquisa de campo.",null,null,null,null,null,null,null,null,200,{"$f":"(N165*D165)","v":400},"      NÃO"]
[null,3,null,1,"Passagem aérea New York/SP/New York-palestrante Joseph Smith (Aux.Org.) ",null,null,null,null,null,null,null,null,2000,{"$f":"(N166*D166)","v":2000},"      NÃO"]
[null,4,null,1,"Passagem aérea New York/SP/New York – palestrante John Thompson (Aux.Org.)",null,null,null,null,null,null,null,null,2000,{"$f":"(N167*D167)","v":2000},"      NÃO"]
[]
[null,"- JUSTIFIQUE EM ANEXO A UTILIDADE DE CADA ITEM SOLICITADO PARA O DESENVOLVIMENTO DO PROJETO DE PESQUISA"]
[null,{"$f":"B85","v":"FAPESP, AGOSTO DE 2017"}]

{"sheet":"8-DIP-DIE","index":7,"n_rows":182,"n_cols":20,"rows_kept":182,"cut":false,"hidden":false,"merged":[[75,3,75,11],[76,3,76,11],[77,3,77,11],[78,3,78,11],[24,3,24,11],[7,5,7,17],[65,3,65,11],[66,3,66,11],[56,3,56,11],[57,3,57,11],[13,14,14,14],[13,15,14,15],[13,3,14,11],[22,3,22,11],[34,3,34,11],[35,3,35,11],[13,12,14,12],[30,3,30,11],[17,3,17,11],[18,3,18,11],[19,3,19,11],[46,3,46,11],[47,3,47,11],[48,3,48,11],[178,1,178,2],[178,4,178,11],[177,1,177,2],[36,3,36,11],[20,3,20,11],[33,3,33,11],[64,3,64,11],[50,1,50,17],[84,3,84,11],[79,3,79,11],[81,3,81,11],[68,3,68,11],[69,3,69,11],[70,3,70,11],[82,3,82,11],[60,3,60,11],[155,1,155,17],[176,4,176,11],[86,3,86,11],[87,3,87,11],[62,3,62,11],[53,2,54,2],[67,3,67,11],[58,3,58,11],[28,3,28,11],[29,3,29,11],[13,1,14,1],[43,3,43,11],[11,7,11,9],[11,3,11,5],[15,3,15,11],[11,10,11,12],[13,2,14,2],[37,3,37,11],[38,3,38,11],[39,3,39,11],[40,3,40,11],[41,3,41,11],[42,3,42,11],[21,3,21,11],[174,13,175,13],[1,14,1,17],[16,3,16,11],[32,3,32,11],[55,3,55,11],[31,3,31,11],[53,15,54,15],[53,16,53,17],[13,13,14,13],[13,16,13,17],[7,1,7,4],[92,1,92,17],[9,1,9,2],[9,3,9,5],[85,3,85,11],[71,3,71,11],[72,3,72,11],[73,3,73,11],[74,3,74,11],[11,1,11,2],[26,3,26,11],[27,3,27,11],[44,3,44,11],[45,3,45,11],[180,1,180,17],[23,3,23,11],[25,3,25,11],[88,3,88,11],[89,3,89,11],[90,3,90,11],[59,3,59,11],[80,3,80,11],[176,1,176,2],[61,3,61,11],[53,1,54,1],[174,1,175,2],[63,3,63,11],[53,3,54,11],[53,12,54,12],[53,13,54,13],[53,14,54,14],[83,3,83,11],[174,16,174,17],[174,12,175,12],[174,4,175,11],[174,3,175,3],[174,15,175,15],[174,14,175,14]]}
[]
[]
[]
[]
[]
[null,"8- DESPESAS COM DIÁRIAS NO PAÍS E NO EXTERIOR"]
[]
[null,"NOME DO INTERESSADO:"]
[]
[null,"PROCESSO: "]
[]
[null,"TOTAL DIP:",null,{"$f":"IF(SUM(O16:O49,O56:O91)=0,\"\",SUM(O16:O49,O56:O91))","v":""},null,null,null,"TOTAL DIE:",null,null,{"$f":"IF(SUM(P16:P49,P56:P91)=0,\"\",SUM(P16:P49,P56:P91))","v":""}]
[]
[null,"item","quant.","descrição (somente 1 linha para cada item)",null,null,null,null,null,null,null,null,"item de despesa","preço unitário","total DIP","total DIE","FAPESP",null,null,"DIP"]
[null,null,null,null,null,null,null,null,null,null,null,null,null,null,null,null,"CONCEDIDO?","ALÍNEA"]
[null,null,null,null,null,null,null,null,null,null,null,null,null,null,{"$f":"IF(M16=\"DIP\",C16*N16,\"\")","v":""},{"$f":"IF(M16=\"DIE\",C16*N16,\"\")","v":""},"      NÃO",null,null,"DIE"]
[null,null,null,null,null,null,null,null,null,null,null,null,null,null,"","","      NÃO"]
[null,null,null,null,null,null,null,null,null,null,null,null,null,null,"","","      NÃO"]
[null,null,null,null,null,null,null,null,null,null,null,null,null,null,"","","      NÃO"]
[null,null,null,null,null,null,null,null,null,null,null,null,null,null,"","","      NÃO"]
[null,null,null,null,null,null,null,null,null,null,null,null,null,null,"","","      NÃO"]
[null,null,null,null,null,null,null,null,null,null,null,null,null,null,"","","      NÃO"]
[null,null,null,null,null,null,null,null,null,null,null,null,null,null,"","","      NÃO"]
[null,null,null,null,null,null,null,null,null,null,null,null,null,null,"","","      NÃO"]
[null,null,null,null,null,null,null,null,null,null,null,null,null,null,"","","      NÃO"]
[null,null,null,null,null,null,null,null,null,null,null,null,null,null,"","","      NÃO"]
[null,null,null,null,null,null,null,null,null,null,null,null,null,null,"","","      NÃO"]
[null,null,null,null,null,null,null,null,null,null,null,null,null,null,"","","      NÃO"]
[null,null,null,null,null,null,null,null,null,null,null,null,null,null,"","","      NÃO"]
[null,null,null,null,null,null,null,null,null,null,null,null,null,null,"","","      NÃO"]
[null,null,null,null,null,null,null,null,null,null,null,null,null,null,"","","      NÃO"]
[null,null,null,null,null,null,null,null,null,null,null,null,null,null,"","","      NÃO"]
[null,null,null,null,null,null,null,null,null,null,null,null,null,null,"","","      NÃO"]
[null,null,null,null,null,null,null,null,null,null,null,null,null,null,{"$f":"IF(M34=\"DIP\",C34*N34,\"\")","v":""},{"$f":"IF(M34=\"DIE\",C34*N34,\"\")","v":""},"      NÃO"]
[null,null,null,null,null,null,null,null,null,null,null,null,null,null,"","","      NÃO"]
[null,null,null,null,null,null,null,null,null,null,null,null,null,null,"","","      NÃO"]
[null,null,null,null,null,null,null,null,null,null,null,null,null,null,"","","      NÃO"]
[null,null,null,null,null,null,null,null,null,null,null,null,null,null,"","","      NÃO"]
[null,null,null,null,null,null,null,null,null,null,null,null,null,null,"","","      NÃO"]
[null,null,null,null,null,null,null,null,null,null,null,null,null,null,"","","      NÃO"]
[null,null,null,null,null,null,null,null,null,null,null,null,null,null,"","","      NÃO"]
[null,null,null,null,null,null,null,null,null,null,null,null,null,null,"","","      NÃO"]
[null,null,null,null,null,null,null,null,null,null,null,null,null,null,"","","      NÃO"]
[null,null,null,null,null,null,null,null,null,null,null,null,null,null,"","","      NÃO"]
[null,null,null,null,null,null,null,null,null,null,null,null,null,null,"","","      NÃO"]
[null,null,null,null,null,null,null,null,null,null,null,null,null,null,"","","      NÃO"]
[null,null,null,null,null,null,null,null,null,null,null,null,null,null,"","","      NÃO"]
[null,null,null,null,null,null,null,null,null,null,null,null,null,null,"","","      NÃO"]
[null,null,null,null,null,null,null,null,null,null,null,null,null,null,"","","      NÃO"]
[]
[null,"- JUSTIFIQUE EM ANEXO A UTILIDADE DE CADA ITEM SOLICITADO PARA O DESENVOLVIMENTO DO PROJETO DE PESQUISA"]
[null,{"$f":"'1-MPN'!$B$52","v":"FAPESP, AGOSTO DE 2017"},null,null,null,null,null,null,null,null,null,null,null,null,null,null,null,1]
[null,{"$f":"B6","v":"8- DESPESAS COM DIÁRIAS NO PAÍS E NO EXTERIOR"}]
[null,"item","quant.","descrição (somente 1 linha para cada item)",null,null,null,null,null,null,null,null,"item de despesa","preço unitário","total DIP","total DIE","FAPESP"]
[null,null,null,null,null,null,null,null,null,null,null,null,null,null,null,null,"CONCEDIDO?","ALÍNEA"]
[null,null,null,null,null,null,null,null,null,null,null,null,null,null,{"$f":"IF(M56=\"DIP\",C56*N56,\"\")","v":""},{"$f":"IF(M56=\"DIE\",C56*N56,\"\")","v":""},"      NÃO"]
[null,null,null,null,null,null,null,null,null,null,null,null,null,null,{"$f":"IF(M57=\"DIP\",C57*N57,\"\")","v":""},{"$f":"IF(M57=\"DIE\",C57*N57,\"\")","v":""},"      NÃO"]
[null,null,null,null,null,null,null,null,null,null,null,null,null,null,"","","      NÃO"]
[null,null,null,null,null,null,null,null,null,null,null,null,null,null,"","","      NÃO"]
[null,null,null,null,null,null,null,null,null,null,null,null,null,null,"","","      NÃO"]
[null,null,null,null,null,null,null,null,null,null,null,null,null,null,"","","      NÃO"]
[null,null,null,null,null,null,null,null,null,null,null,null,null,null,"","","      NÃO"]
[null,null,null,null,null,null,null,null,null,null,null,null,null,null,"","","      NÃO"]
[null,null,null,null,null,null,null,null,null,null,null,null,null,null,"","","      NÃO"]
[null,null,null,null,null,null,null,null,null,null,null,null,null,null,"","","      NÃO"]
[null,null,null,null,null,null,null,null,null,null,null,null,null,null,"","","      NÃO"]
[null,null,null,null,null,null,null,null,null,null,null,null,null,null,"","","      NÃO"]
[null,null,null,null,null,null,null,null,null,null,null,null,null,null,"","","      NÃO"]
[null,null,null,null,null,null,null,null,null,null,null,null,null,null,"","","      NÃO"]
[null,null,null,null,null,null,null,null,null,null,null,null,null,null,"","","      NÃO"]
[null,null,null,null,null,null,null,null,null,null,null,null,null,null,"","","      NÃO"]
[null,null,null,null,null,null,null,null,null,null,null,null,null,null,"","","      NÃO"]
[null,null,null,null,null,null,null,null,null,null,null,null,null,null,"","","      NÃO"]
[null,null,null,null,null,null,null,null,null,null,null,null,null,null,"","","      NÃO"]
[null,null,null,null,null,null,null,null,null,null,null,null,null,null,"","","      NÃO"]
[null,null,null,null,null,null,null,null,null,null,null,null,null,null,"","","      NÃO"]
[null,null,null,null,null,null,null,null,null,null,null,null,null,null,"","","      NÃO"]
[null,null,null,null,null,null,null,null,null,null,null,null,null,null,"","","      NÃO"]
[null,null,null,null,null,null,null,null,null,null,null,null,null,null,"","","      NÃO"]
[null,null,null,null,null,null,null,null,null,null,null,null,null,null,"","","      NÃO"]
[null,null,null,null,null,null,null,null,null,null,null,null,null,null,"","","      NÃO"]
[null,null,null,null,null,null,null,null,null,null,null,null,null,null,"","","      NÃO"]
[null,null,null,null,null,null,null,null,null,null,null,null,null,null,"","","      NÃO"]
[null,null,null,null,null,null,null,null,null,null,null,null,null,null,"","","      NÃO"]
[null,null,null,null,null,null,null,null,null,null,null,null,null,null,"","","      NÃO"]
[null,null,null,null,null,null,null,null,null,null,null,null,null,null,"","","      NÃO"]
[null,null,null,null,null,null,null,null,null,null,null,null,null,null,"","","      NÃO"]
[null,null,null,null,null,null,null,null,null,null,null,null,null,null,"","","      NÃO"]
[null,null,null,null,null,null,null,null,null,null,null,null,null,null,"","","      NÃO"]
[null,null,null,null,null,null,null,null,null,null,null,null,null,null,"","","      NÃO"]
[null,null,null,null,null,null,null,null,null,null,null,null,null,null,"","","      NÃO"]
[]
[null,"- JUSTIFIQUE EM ANEXO A UTILIDADE DE CADA ITEM SOLICITADO PARA O DESENVOLVIMENTO DO PROJETO DE PESQUISA"]
[null,{"$f":"'1-MPN'!$B$52","v":"FAPESP, AGOSTO DE 2017"},null,null,null,null,null,null,null,null,null,null,null,null,null,null,null,2]
[]
[]
[]
[]
[]
[]
[]
[]
[]
[]
[]
[]
[]
[]
[]
[]
[]
[]
[]
[]
[]
[]
[]
[]
[]
[]
[]
[]
[]
[]
[]
[]
[]
[]
[]
[]
[]
[]
[]
[]
[]
[]
[]
[]
[]
[]
[]
[]
[]
[]
[]
[]
[]
[null,"PARA IMPRIMIR A INSTRUÇÃO ABAIXO, SELECIONE A ÁREA A SER IMPRESSA"]
[null,"DIGITE \"CTRL\" P, E DEPOIS CLIQUE EM SELEÇÃO."]
[]
[]
[]
[null,"FORMULÁRIO 8- DESPESAS COM DIÁRIAS NO PAÍS E NO EXTERIOR"]
[null," INSTRUÇÕES PARA PREENCHIMENTO – LEIA ATENTAMENTE AS INSTRUÇÕES ABAIXO."]
[]
[null,"                               NÃO SERÃO ACEITOS FORMULÁRIOS PREENCHIDOS EM DESACORDO COM ESTA INSTRUÇÃO"]
[]
[null,"- Apresente somente orçamento de recursos necessários para a realização de viagens. Se Concedido, o valor de cada diária não poderá ultrapassar o limite da tabela da FAPESP."]
[null,"- Coluna (item) - cada viagem deve ser numerada seqüencialmente (ver exemplo abaixo).  "]
[null,"- Coluna (quantidade) - quantidade de diárias necessárias para cada viagem/usuário."]
[null,"- Coluna (descrição) - descreva a viagem que se pretende realizar e indique quem será o usuário das diárias (Toda a descrição deve ser feita em português)."]
[null,"- Coluna (item de despesa) - informe se é DIP ou DIE."]
[null,"- Coluna (preço unitário) - valor unitário em moeda nacional.  "]
[null,"- Coluna (total DIP) - cálculo automático do valor total das diárias solicitadas no PAÍS, conforme seleção da coluna (item de despesa)."]
[null,"- Coluna (total DIE) - cálculo automático do  valor total das diárias solicitadas no EXTERIOR, conforme seleção da coluna (item de despesa)."]
[null,"- Coluna () - para uso exclusivo da FAPESP.  "]
[null," "]
[null," OBSERVAÇÕES:  "]
[null,"1) Auxílios para a vinda de pesquisador visitante, realização de estágios, participação em reunião, etc. devem ser solicitados em formulários específicos"]
[null,"    para cada finalidade e de acordo com as regras em vigor.  "]
[null,"2) Para a contratação de recursos humanos de apoio à pesquisa, ver Programa FAPESP de Capacitação Técnica.  "]
[null,"3) Justifique em anexo a utilidade de cada item solicitado para o desenvolvimento do projeto de pesquisa proposto.  "]
[null," EXEMPLO"]
[]
[null,"item",null,"quant.","descrição (somente 1 linha para cada item)",null,null,null,null,null,null,null,"item de despesa","preço unitário","total DIP","total DIE","FAPESP"]
[null,null,null,null,null,null,null,null,null,null,null,null,null,null,null,null,"CONCEDIDO?","ALÍNEA"]
[null,1,null,3,"Pesquisa de campo a ser realizada por ......, na cidade de Brasília",null,null,null,null,null,null,null,"DIP",200,{"$f":"N177*D177","v":600},null,"      NÃO"]
[null,2,null,2,"Pesquisa de campo a ser realizada por ......, na cidade do Rio de Janeiro",null,null,null,null,null,null,null,"DIP",200,{"$f":"N178*D178","v":400},null,"      NÃO"]
[null,3,null,2,"Pesquisa de campo a ser realizada por ......, em New York City",null,null,null,null,null,null,null,"die",350,null,700,"      NÃO"]
[]
[null,"- JUSTIFIQUE EM ANEXO A UTILIDADE DE CADA ITEM SOLICITADO PARA O DESENVOLVIMENTO DO PROJETO DE PESQUISA"]
[null,{"$f":"'1-MPN'!$B$52","v":"FAPESP, AGOSTO DE 2017"},null,null,null,null,null,null,null,null,null,null,null,null,null,null,null,2]

{"sheet":"9a-BOLSAS - TT","index":8,"n_rows":124,"n_cols":17,"rows_kept":124,"cut":false,"hidden":false,"merged":[[123,1,123,11],[115,6,115,11],[102,1,102,11],[103,1,103,11],[104,1,104,11],[118,1,118,11],[119,1,119,11],[120,1,120,11],[121,1,121,11],[122,1,122,11],[88,6,88,11],[90,5,90,6],[92,4,92,6],[86,1,86,11],[85,1,85,11],[90,7,91,11],[92,7,92,11],[84,9,84,10],[14,1,15,1],[14,4,15,4],[14,5,15,5],[14,6,15,6],[14,7,15,7],[14,8,15,8],[83,1,83,8],[84,1,84,5],[84,6,84,7],[6,1,6,7],[6,8,6,11],[12,4,12,6],[10,5,10,6],[14,9,15,9],[14,10,15,10],[8,6,8,11]]}
[]
[]
[]
[]
[]
[]
[null,"9A- BOLSAS DE CAPACITAÇÃO TÉCNICA VINCULADAS AO",null,null,null,null,null,null,{"$f":"'1-MPN'!B7","v":"CLIQUE AQUI E SELECIONE A MODALIDADE DO AUXÍLIO SOLICITADO"}]
[]
[null,"NOME DO INTERESSADO:"]
[]
[null,"PROCESSO:   "]
[]
[null,"TOTAL:",null,null,{"$f":"IF(SUM(K17:K45)=0,\"\",(SUM(K17:K45)))","v":""}]
[]
[null,"item",null,null,"modalidade","quantidade","duração (meses)","carga horária semanal","valor integral da bolsa","valor da mensalidade","custo total","FAPESP"]
[null,null,null,null,null,null,null,null,null,null,null,"CONCEDIDO?"]
[null,null,null,null,null,null,null,null,{"$f":"IF(E17=0,\"\",F17*INDEX($O$17:$O$22,MATCH(E17,$N$17:$N$22,0)))","v":""},{"$f":"IF(E17=\"\",\"\",INDEX($O$17:$O$22,MATCH(E17,$N$17:$N$22,0)))","v":""},{"$f":"IF(E17=0,\"\",IF(E17=\"TT-I\",F17*I17*G17,F17*I17*G17*(H17/40)))","v":""},"        NÃO",null,"TT-I",427.6,null,1]
[null,null,null,null,null,null,null,null,{"$f":"IF(E18=0,\"\",F18*INDEX($O$17:$O$22,MATCH(E18,$N$17:$N$22,0)))","v":""},{"$f":"IF(E18=\"\",\"\",INDEX($O$17:$O$22,MATCH(E18,$N$17:$N$22,0)))","v":""},"","        NÃO",null,"TT-II",854.4,null,2]
[null,null,null,null,null,null,null,null,"","","","        NÃO",null,"TT-III",1195.5999999999999,null,3]
[null,null,null,null,null,null,null,null,"","","","        NÃO",null,"TT-IV",3021.6,null,4]
[null,null,null,null,null,null,null,null,"","","","        NÃO",null,"TT-IV-A",4954.3999999999996,null,5]
[null,null,null,null,null,null,null,null,"","","","        NÃO",null,"TT-V",7174.4,null,6]
[null,null,null,null,null,null,null,null,"","","","        NÃO",null,null,null,null,7]
[null,null,null,null,null,null,null,null,"","","","        NÃO",null,null,null,null,8]
[null,null,null,null,null,null,null,null,"","","","        NÃO",null,null,null,null,9]
[null,null,null,null,null,null,null,null,"","","","        NÃO",null,null,null,null,10]
[null,null,null,null,null,null,null,null,"","","","        NÃO",null,null,null,null,11]
[null,null,null,null,null,null,null,null,"","","","        NÃO",null,null,null,null,12]
[null,null,null,null,null,null,null,null,"","","","        NÃO",null,null,null,null,13]
[null,null,null,null,null,null,null,null,"","","","        NÃO",null,null,null,null,14]
[null,null,null,null,null,null,null,null,"","","","        NÃO",null,null,null,null,15]
[null,null,null,null,null,null,null,null,"","","","        NÃO",null,null,null,null,16]
[null,null,null,null,null,null,null,null,"","","","        NÃO",null,null,null,null,17]
[null,null,null,null,null,null,null,null,"","","","        NÃO",null,null,null,null,18]
[null,null,null,null,null,null,null,null,"","","","        NÃO",null,null,null,null,19]
[null,null,null,null,null,null,null,null,"","","","        NÃO",null,null,null,null,20]
[null,null,null,null,null,null,null,null,"","","","        NÃO",null,null,null,null,21]
[null,null,null,null,null,null,null,null,"","","","        NÃO",null,null,null,null,22]
[null,null,null,null,null,null,null,null,"","","","        NÃO",null,null,null,null,23]
[null,null,null,null,null,null,null,null,"","","","        NÃO",null,null,null,null,24]
[null,null,null,null,null,null,null,null,"","","","        NÃO",null,null,null,null,25]
[null,null,null,null,null,null,null,null,"","","","        NÃO",null,null,null,null,26]
[null,null,null,null,null,null,null,null,"","","","        NÃO",null,null,null,null,27]
[null,null,null,null,null,null,null,null,"","","","        NÃO",null,null,null,null,28]
[null,null,null,null,null,null,null,null,"","","","        NÃO",null,null,null,null,29]
[null,{"$f":"'1-MPN'!B52","v":"FAPESP, AGOSTO DE 2017"},null,null,null,null,null,null,null,null,null,null,null,null,null,null,30]
[null,null,null,null,null,null,null,null,null,null,null,null,null,null,null,null,31]
[null,null,null,null,null,null,null,null,null,null,null,null,null,null,null,null,32]
[null,null,null,null,null,null,null,null,null,null,null,null,null,null,null,null,33]
[null,null,null,null,null,null,null,null,null,null,null,null,null,null,null,null,34]
[null,null,null,null,null,null,null,null,null,null,null,null,null,null,null,null,35]
[null,null,null,null,null,null,null,null,null,null,null,null,null,null,null,null,36]
[null,null,null,null,null,null,null,null,null,null,null,null,null,null,null,null,37]
[null,null,null,null,null,null,null,null,null,null,null,null,null,null,null,null,38]
[null,null,null,null,null,null,null,null,null,null,null,null,null,null,null,null,39]
[null,null,null,null,null,null,null,null,null,null,null,null,null,null,null,null,40]
[]
[]
[]
[]
[]
[]
[]
[]
[]
[]
[]
[]
[]
[]
[]
[]
[]
[]
[]
[]
[]
[]
[null,"PARA IMPRIMIR A INSTRUÇÃO ABAIXO, SELECIONE A ÁREA A SER IMPRESSA"]
[null,"DIGITE \"CTRL\" P, E DEPOIS CLIQUE EM SELEÇÃO."]
[]
[]
[]
[null,"9A- BOLSAS DE CAPACITAÇÃO TÉCNICA VINCULADAS A: "]
[]
[null,"AS CAIXAS DE SELEÇÃO ACIMA, DEVEM SER CLICADAS DEPENDENDO DO PROGRAMA A QUE AS BOLSAS TT ESTÃO VINCULADAS."]
[null,"SOMENTE É PERMITIDO A SELEÇÃO DE UMA DAS CAIXAS."]
[]
[null,"NOME DO INTERESSADO:"]
[]
[null,"PROCESSO:   ",null,null,null,null,null,"(PARA PEDIDOS INICIAIS, NÃO É NECESSÁRIO PREENCHER ESTE CAMPO, ELE DEVE SER PREENCHIDO EM CASOS DE RECONSIDERAÇÃO DO ORÇAMENTO PELA FAPESP."]
[]
[null,"TOTAL:",null,null,{"$f":"IF(SUM(K96:K101)=0,\"\",(SUM(K96:K101)))","v":209399.52},null,null,"(CÉLULA DE TOTALIZAÇÃO AUTOMÁTICA)"]
[]
[null,"item",null,null,"modalidade","quantidade","duração (meses)","carga horária semanal","valor integral da bolsa","valor da mensalidade","custo total","FAPESP"]
[null,1,null,null,"TT-I",1,6,null,{"$f":"IF(E96=0,\"\",INDEX($O$17:$O$22,MATCH(E96,$N$17:$N$22,0)))","v":427.6},{"$f":"IF(ISERROR(K96/G96/F96),\"\",(K96/G96/F96))","v":427.60000000000008},{"$f":"IF(E96=0,\"\",IF(E96=\"TT-I\",F96*I96*G96,F96*I96*G96*(H96/40)))","v":2565.6000000000004},"CONCEDIDO?"]
[null,2,null,null,"TT-I",1,12,null,{"$f":"IF(E97=0,\"\",INDEX($O$17:$O$22,MATCH(E97,$N$17:$N$22,0)))","v":427.6},427.60000000000008,5131.2000000000007,"         NÃO"]
[null,3,null,null,"TT-II",2,12,16,854.4,341.76,8202.24,"         NÃO"]
[null,4,null,null,"TT-III",1,12,40,1195.5999999999999,1023.6,{"$f":"J99*G99*H99/40","v":12283.2},"         NÃO"]
[null,5,null,null,"TT-IV-A",2,24,16,4954.3999999999996,1981.76,95124.479999999996,"         NÃO"]
[null,6,null,null,"TT-V",1,12,40,7174.4,7174.3999999999987,86092.799999999988,"         NÃO"]
[]
[null,"Coluna (item) - as bolsas solicitadas devem ser numeradas sequencialmente."]
[null,"Coluna (modalidade) - Selecione a modalidade de bolsa TT, veja acima todas as opções disponíveis."]
[null,"Coluna (quantidade) - Digite  a quantidade de bolsas (bolsistas) referente a modalidade solicitada."]
[null,"Coluna (duração (meses)) - Digite  a duração da bolsa solicitada, se houver mais de um bolsista de uma mesma modalidade com duração"]
[null,"diferente, deve ser preenchida outra linha nesta modalidade, conforme exemplo nos itens 1 e 2 acima."]
[null,"Coluna (carga horária semanal) - As bolsas de TT-I tem carga horária semanal de 15 horas, por isso quando é selecionada esta "]
[null,"modalidade a caixa de seleção desta coluna fica com fundo preto (automático), para as outras bolsas, é possível selecionar de "]
[null,"16 a 40 horas semanais, veja abaixo os níveis de bolsas TT disponíveis."]
[null,"Coluna (valor integral da bolsa) - Esta coluna é automática de acordo com a modalidade de bolsa TT selecionada."]
[null,"Coluna (valor da mensalidade) - Esta coluna é automática e pode variar de acordo com a carga horária semanal selecionada para as ","Coluna (valor integral da bolsa) - Esta coluna é automática de acordo com a modalidade de bolsa TT selecionada."]
[null,"bolsa de TT-II, TT-III, TT-IV ou TT-V."]
[null,"Coluna (custo total) -  Coluna de totalização automática."]
[]
[null,"Níveis de Bolsas TT",null,null,null,null,"http://www.fapesp.br/materia/3098/capacitacao-tecnica/niveis-de-bolsas-tt.htm "]
[]
[null,"Os níveis de Bolsas TT são: "]
[null,"i) Bolsa TT-1, para alunos de graduação, sem reprovações em seu histórico escolar e sem vínculo empregatício, com dedicação de 15 horas semanais às atividades de apoio ao projeto de pesquisa, sem que haja prejuízo em seu desempenho acadêmico;"]
[null,"ii) Bolsa TT-2, para alunos do último ano ou egressos do nível médio técnico, sem reprovações em seu histórico escolar e sem vínculo empregatício, com dedicação de 16 a 40 horas semanais (o valor da Bolsa a ser paga será proporcional ao número de horas semanais) às atividades de apoio ao projeto de pesquisa;"]
[null,"iii) Bolsa TT-3, para alunos graduados do nível superior, sem reprovações em seu histórico escolar e sem vínculo empregatício, com dedicação de 16 a 40 horas semanais (o valor da Bolsa a ser paga será proporcional ao número de horas semanais) às atividades de apoio ao projeto de pesquisa. O tempo de bolsa TT-3 será descontado no caso do interessado vir a usufruir de Bolsa de Mestrado ou Doutorado Direto."]
[null,"iv) Bolsa TT-4, para graduado, especialista em Tecnologia de Informação (TI), com dois anos de experiência após a graduação ou título de mestrado na área de TI, sem vínculo empregatício, com dedicação de 16 a 40 horas semanais (o valor da Bolsa a ser paga será proporcional ao número de horas semanais) às atividades de apoio ao projeto de pesquisa;"]
[null,"v) Bolsa TT-4A, para graduado, especialista em TI com pelo menos quatro anos de experiência após a graduação, sem vínculo empregatício, com dedicação de 16 a 40 horas semanais (o valor da Bolsa a ser paga será proporcional ao número de horas semanais) às atividades de apoio ao projeto de pesquisa;"]
[null,"vi) Bolsa TT-5, para graduado, especialista em TI com pelo menos cinco anos de experiência após a graduação ou título de doutorado, sem vínculo empregatício, com dedicação de 16 a 40 horas semanais (o valor da Bolsa a ser paga será proporcional ao número de horas semanais) às atividades de apoio ao projeto de pesquisa."]

{"sheet":"9b-BOLSAS IC,DD,PD - TEMÁTICO","index":9,"n_rows":111,"n_cols":20,"rows_kept":111,"cut":false,"hidden":false,"merged":[[40,10,40,12],[5,1,5,7],[7,3,7,8],[11,2,11,3],[9,2,9,3],[13,1,14,1],[13,2,14,2],[13,3,14,3],[13,4,14,4],[13,5,14,5],[13,6,14,6],[13,7,14,7],[37,10,37,12]]}
[]
[]
[]
[]
[]
[null,"9B- BOLSAS ACADÊMICAS VINCULADAS SOMENTE A PROJETOS TEMÁTICOS - (IC-DD-PD)"]
[]
[null,"NOME DO INTERESSADO:"]
[]
[null,"PROCESSO:   "]
[]
[null,"TOTAL:",{"$f":"IF(SUM(H16:H41)=0,\"\",(SUM(H16:H41)))","v":""}]
[]
[null,"item","modalidade","quantidade","duração (meses)","valor da bolsa","Reserva Técnica da bolsa","custo total","FAPESP"]
[null,null,null,null,null,null,null,null,"CONCEDIDO?",null,"MODALIDADE","VALOR BOLSA","RT ANUAL","RT MENSAL","%",null,"Iniciação Científica (IC)",676.8]
[null,null,null,null,null,{"$f":"IF(C16=0,\"\",INDEX($L$16:$L$21,MATCH(C16,$K$16:$K$21,0)))","v":""},{"$f":"IF(C16=\"\",\"\",E16*INDEX($N$16:$N$21,MATCH(C16,$K$16:$K$21,0)))","v":""},{"$f":"IF(ISERROR(D16*F16*E16),\"\",D16*F16*E16)","v":""},"     NÃO",null,"IC",676.8,{"$f":"L16*12*O16","v":812.16},{"$f":"M16/12","v":67.679999999999993},0.1,null,"Mestrado I (MS-I) e Doutorado Direto I (DD I)",1988.1]
[null,null,null,null,null,{"$f":"IF(C17=0,\"\",INDEX($L$16:$L$21,MATCH(C17,$K$16:$K$21,0)))","v":""},{"$f":"IF(C17=\"\",\"\",E17*INDEX($N$16:$N$21,MATCH(C17,$K$16:$K$21,0)))","v":""},{"$f":"IF(ISERROR(D17*F17*E17),\"\",D17*F17*E17)","v":""},"     NÃO",null,"DD-I",1988.1,7157.1599999999989,596.42999999999995,0.3,null,"Mestrado II (MS-II) e Doutorado Direto II (DD II)",2110.1999999999998]
[null,null,null,null,null,"","","","     NÃO",null,"DD-II",2110.1999999999998,7596.7199999999993,633.05999999999995,0.3,null,"Doutorado I (DR-I) e Doutorado Direto III (DD III)",2929.8]
[null,null,null,null,null,"","","","     NÃO",null,"DD-III",2929.8,10547.28,878.94,0.3,null,"Doutorado II (DR-II) e Doutorado Direto IV (DD-IV)",3626.1]
[null,null,null,null,null,"","",{"$f":"IF(ISERROR(D20*F20*E20),\"\",D20*F20*E20)","v":""},"     NÃO",null,"DD-IV",3626.1,13053.96,1087.83,0.3,null,"Pós-Doutorado (PD-BR)",7174.8]
[null,null,null,null,null,"","","","     NÃO",null,"PD",{"$f":"R20","v":7174.8},{"$f":"L21*12*O21","v":12914.640000000001},{"$f":"M21/12","v":1076.22},0.15]
[null,null,null,null,null,"","","","     NÃO"]
[null,null,null,null,null,"","","","     NÃO"]
[null,null,null,null,null,"","","","     NÃO"]
[null,null,null,null,null,"","","","     NÃO"]
[null,null,null,null,null,"","","","     NÃO"]
[null,null,null,null,null,"","","","     NÃO"]
[null,null,null,null,null,"","","","     NÃO"]
[null,null,null,null,null,"","","","     NÃO"]
[null,null,null,null,null,"","","","     NÃO"]
[null,null,null,null,null,"","","","     NÃO"]
[null,null,null,null,null,"","","","     NÃO"]
[null,null,null,null,null,"","","","     NÃO"]
[null,null,null,null,null,"","","","     NÃO",null,"TOTAL DA RESERVA TÉCNICA TEMÁTICO - ESTA ABA"]
[null,null,null,null,null,"","","","     NÃO",null,{"$f":"SUM(G16:G41)","v":0}]
[null,null,null,null,null,"","","","     NÃO"]
[null,null,null,null,null,"","","","     NÃO",null,"TOTAL GERAL DA RESERVA TÉCNICA - JP"]
[null,null,null,null,null,"","","","     NÃO",null,{"$f":"'9C-BOLSAS IC,MS,DD - JP'!K35","v":0}]
[null,null,null,null,null,"","","","     NÃO"]
[null,null,null,null,null,"","","","     NÃO",null,"TOTAL GERAL DA RESERVA TÉCNICA DA BOLSAS"]
[null,null,null,null,null,"","","","     NÃO",null,{"$f":"K35+K38","v":0}]
[null,{"$f":"'9a-BOLSAS - TT'!B46","v":"FAPESP, AGOSTO DE 2017"}]
[]
[]
[]
[]
[]
[]
[]
[]
[]
[]
[]
[]
[]
[]
[]
[]
[]
[]
[]
[]
[]
[]
[]
[]
[]
[]
[]
[]
[null,null,null,null,null,null,null,null,null,null,null,null,null,null,null,null,null,"Valores vigentes até 31/3/2016"]
[null,null,null,null,null,null,null,null,null,null,null,null,null,null,null,null,null,579.29999999999995]
[null,null,null,null,null,null,null,null,null,null,null,null,null,null,null,null,null,1701.9]
[null,null,null,null,null,null,null,null,null,null,null,null,null,null,null,null,null,1806.6]
[null,null,null,null,null,null,null,null,null,null,null,null,null,null,null,null,null,2508.6]
[null,null,null,null,null,null,null,null,null,null,null,null,null,null,null,null,null,3104.7]
[null,null,null,null,null,null,null,null,null,null,null,null,null,null,null,null,null,6143.4,"Valores vigentes até 31/3/2016","Valores vigentes a partir de 1º/4/2016"]
[null,null,null,null,null,null,null,null,null,null,null,null,null,null,null,null,null,"Valores vigentes até 31/3/2016",579.29999999999995,643.20000000000005]
[null,null,null,null,null,null,null,null,null,null,null,null,null,null,null,null,null,366,1701.9,1889.4]
[null,null,null,null,null,null,null,null,null,null,null,null,null,null,null,null,null,731.4,1806.6,2005.5]
[null,null,null,null,null,null,null,null,null,null,null,null,null,null,null,null,null,1023.6,2508.6,2784.6]
[null,null,null,null,null,null,null,null,null,null,null,null,null,null,null,null,null,2587.1999999999998,3104.7,3446.4]
[null,null,null,null,null,null,null,null,null,null,null,null,null,null,null,null,null,4238.7,6143.4,6819.3]
[null,null,null,null,null,null,null,null,null,null,null,null,null,null,null,null,null,6143.4,"Valores vigentes até 31/3/2016","Valores vigentes a partir de 1º/4/2016"]
[null,null,null,null,null,null,null,null,null,null,null,null,null,null,null,null,null,585,366,406.5]
[null,null,null,null,null,null,null,null,null,null,null,null,null,null,null,null,null,877.2,731.4,812.1]
[null,null,null,null,null,null,null,null,null,null,null,null,null,null,null,null,null,"USD 1.200",1023.6,1136.4000000000001]
[null,null,null,null,null,null,null,null,null,null,null,null,null,null,null,null,null,"Valores vigentes até 31/3/2016",2587.1999999999998,2871.9]
[null,null,null,null,null,null,null,null,null,null,null,null,null,null,null,null,null,6980.4,4238.7,4705.2]
[null,null,null,null,null,null,null,null,null,null,null,null,null,null,null,null,null,"Valores vigentes até 31/3/2016",6143.4,6819.3]
[null,null,null,null,null,null,null,null,null,null,null,null,null,null,null,null,null,263.7,585,649.5]
[null,null,null,null,null,null,null,null,null,null,null,null,null,null,null,null,null,526.79999999999995,877.2,973.8]
[null,null,null,null,null,null,null,null,null,null,null,null,null,null,null,null,null,789.9,"USD 1.200","USD 1.200"]
[null,null,null,null,null,null,null,null,null,null,null,null,null,null,null,null,null,1052.4000000000001,"Valores vigentes até 31/3/2016","Valores vigentes a partir de 1º/4/2016"]
[null,null,null,null,null,null,null,null,null,null,null,null,null,null,null,null,null,1316.1,6980.4,7748.4]
[null,null,null,null,null,null,null,null,null,null,null,null,null,null,null,null,null,2104.8000000000002,"Valores vigentes até 31/3/2016","Valores vigentes a partir de 1º/4/2016"]
[null,null,null,null,null,null,null,null,null,null,null,null,null,null,null,null,null,"Valores vigentes até 31/3/2016",263.7,292.8]
[null,null,null,null,null,null,null,null,null,null,null,null,null,null,null,null,null,3372.9,526.79999999999995,585]
[null,null,null,null,null,null,null,null,null,null,null,null,null,null,null,null,null,4990.8,789.9,876.9]
[null,null,null,null,null,null,null,null,null,null,null,null,null,null,null,null,null,6980.4,1052.4000000000001,1168.2]
[null,null,null,null,null,null,null,null,null,null,null,null,null,null,null,null,null,"Valores vigentes até 31/3/2016",1316.1,1461]
[null,null,null,null,null,null,null,null,null,null,null,null,null,null,null,null,null,579.29999999999995,2104.8000000000002,2336.4]
[null,null,null,null,null,null,null,null,null,null,null,null,null,null,null,null,null,1701.9,"Valores vigentes até 31/3/2016","Valores vigentes a partir de 1º/4/2016"]
[null,null,null,null,null,null,null,null,null,null,null,null,null,null,null,null,null,2508.6,3372.9,3744]
[null,null,null,null,null,null,null,null,null,null,null,null,null,null,null,null,null,6143.4,4990.8,5539.8]
[null,null,null,null,null,null,null,null,null,null,null,null,null,null,null,null,null,null,6980.4,7748.4]
[null,null,null,null,null,null,null,null,null,null,null,null,null,null,null,null,null,null,"Valores vigentes até 31/3/2016","Valores vigentes a partir de 1º/4/2016"]
[null,null,null,null,null,null,null,null,null,null,null,null,null,null,null,null,null,null,579.29999999999995,643.20000000000005]
[null,null,null,null,null,null,null,null,null,null,null,null,null,null,null,null,null,null,1701.9,1889.4]
[null,null,null,null,null,null,null,null,null,null,null,null,null,null,null,null,null,null,2508.6,2784.6]
[null,null,null,null,null,null,null,null,null,null,null,null,null,null,null,null,null,null,6143.4,6819.3]

{"sheet":"9C-BOLSAS IC,MS,DD - JP","index":10,"n_rows":111,"n_cols":20,"rows_kept":111,"cut":false,"hidden":false,"merged":[[40,10,40,12],[9,2,9,3],[13,6,14,6],[7,3,7,8],[11,2,11,3],[13,7,14,7],[5,1,5,7],[13,1,14,1],[13,2,14,2],[13,3,14,3],[13,4,14,4],[13,5,14,5]]}
[]
[]
[]
[]
[]
[null,"9B- BOLSAS ACADÊMICAS VINCULADAS AUXILIO JOVEM PESQUISADOR - (IC-MS-DD)"]
[]
[null,"NOME DO INTERESSADO:"]
[]
[null,"PROCESSO:   "]
[]
[null,"TOTAL:",{"$f":"IF(SUM(H16:H41)=0,\"\",(SUM(H16:H41)))","v":""}]
[]
[null,"item","modalidade","quantidade","duração (meses)","valor da bolsa","Reserva Técnica da bolsa","custo total","FAPESP"]
[null,null,null,null,null,null,null,null,"CONCEDIDO?",null,"MODALIDADE","VALOR BOLSA","RT ANUAL","RT MENSAL","%"]
[null,null,null,null,null,{"$f":"IF(C16=0,\"\",INDEX($L$16:$L$22,MATCH(C16,$K$16:$K$22,0)))","v":""},{"$f":"IF(C16=\"\",\"\",E16*INDEX($N$16:$N$22,MATCH(C16,$K$16:$K$22,0)))","v":""},{"$f":"IF(ISERROR(D16*F16*E16),\"\",D16*F16*E16)","v":""},"     NÃO",null,"IC",676.8,{"$f":"L16*12*O16","v":812.16},{"$f":"M16/12","v":67.679999999999993},0.1,null,"Iniciação Científica (IC)",676.8]
[null,null,null,null,null,{"$f":"IF(C17=0,\"\",INDEX($L$16:$L$22,MATCH(C17,$K$16:$K$22,0)))","v":""},{"$f":"IF(C17=\"\",\"\",E17*INDEX($N$16:$N$22,MATCH(C17,$K$16:$K$22,0)))","v":""},"","     NÃO",null,"MS-I",1986.1,7149.9599999999991,595.82999999999993,0.3,null,"Mestrado I (MS-I) e Doutorado Direto I (DD I)",1988.1,null,"\\"]
[null,null,null,null,null,"","","","     NÃO",null,"MS-II",2110.1999999999998,7596.7199999999993,633.05999999999995,0.3,null,"Mestrado II (MS-II) e Doutorado Direto II (DD II)",2110.1999999999998]
[null,null,null,null,null,"","","","     NÃO",null,"DD-I",1988.1,{"$f":"L19*12*O19","v":7157.1599999999989},{"$f":"M19/12","v":596.42999999999995},0.3,null,"Doutorado I (DR-I) e Doutorado Direto III (DD III)",2929.8]
[null,null,null,null,null,"","","","     NÃO",null,"DD-II",2110.1999999999998,{"$f":"L20*12*O20","v":7596.7199999999993},{"$f":"M20/12","v":633.05999999999995},0.3,null,"Doutorado II (DR-II) e Doutorado Direto IV (DD-IV)",3626.1]
[null,null,null,null,null,"","","","     NÃO",null,"DD-III",2929.8,{"$f":"L21*12*O21","v":10547.28},{"$f":"M21/12","v":878.94},0.3,null,"Pós-Doutorado (PD-BR)",7174.8]
[null,null,null,null,null,"","","","     NÃO",null,"DD-IV",3626.1,{"$f":"L22*12*O22","v":13053.96},{"$f":"M22/12","v":1087.83},0.3]
[null,null,null,null,null,"","","","     NÃO",null,"DR-I",{"$f":"L21","v":2929.8},{"$f":"L23*12*O23","v":10547.28},{"$f":"M23/12","v":878.94},0.3]
[null,null,null,null,null,"","","","     NÃO",null,"DR-II",{"$f":"L22","v":3626.1},13053.96,1087.83,0.3]
[null,null,null,null,null,"","","","     NÃO",null,"PD",7174.8,{"$f":"L25*12*O25","v":12914.640000000001},{"$f":"M25/12","v":1076.22},0.15]
[null,null,null,null,null,"","","","     NÃO"]
[null,null,null,null,null,"","","","     NÃO"]
[null,null,null,null,null,"","","","     NÃO"]
[null,null,null,null,null,"","","","     NÃO"]
[null,null,null,null,null,"","","","     NÃO"]
[null,null,null,null,null,"","","","     NÃO"]
[null,null,null,null,null,"","","","     NÃO"]
[null,null,null,null,null,"","","","     NÃO"]
[null,null,null,null,null,"","","","     NÃO",null,"TOTAL DA RESERVA TÉCNICA TEMÁTICO - ESTA ABA"]
[null,null,null,null,null,"","","","     NÃO",null,{"$f":"SUM(G16:G41)","v":0}]
[null,null,null,null,null,"","","","     NÃO"]
[null,null,null,null,null,"","","","     NÃO",null,"TOTAL GERAL DA RESERVA TÉCNICA - JP"]
[null,null,null,null,null,"","","","     NÃO",null,{"$f":"'9C-BOLSAS IC,MS,DD - JP'!L40","v":0}]
[null,null,null,null,null,"","","","     NÃO"]
[null,null,null,null,null,"","","","     NÃO",null,"TOTAL GERAL DA RESERVA TÉCNICA DA BOLSAS"]
[null,null,null,null,null,"","","","     NÃO",null,{"$f":"K35+K38","v":0}]
[null,{"$f":"'1-MPN'!B52","v":"FAPESP, AGOSTO DE 2017"}]
[]
[]
[]
[]
[]
[]
[]
[]
[]
[]
[]
[]
[]
[]
[]
[]
[]
[]
[]
[]
[]
[]
[]
[]
[]
[]
[]
[]
[null,null,null,null,null,null,null,null,null,null,null,null,null,null,null,null,null,"Valores vigentes até 31/3/2016"]
[null,null,null,null,null,null,null,null,null,null,null,null,null,null,null,null,null,579.29999999999995]
[null,null,null,null,null,null,null,null,null,null,null,null,null,null,null,null,null,1701.9]
[null,null,null,null,null,null,null,null,null,null,null,null,null,null,null,null,null,1806.6]
[null,null,null,null,null,null,null,null,null,null,null,null,null,null,null,null,null,2508.6]
[null,null,null,null,null,null,null,null,null,null,null,null,null,null,null,null,null,3104.7]
[null,null,null,null,null,null,null,null,null,null,null,null,null,null,null,null,null,6143.4,"Valores vigentes até 31/3/2016","Valores vigentes a partir de 1º/4/2016"]
[null,null,null,null,null,null,null,null,null,null,null,null,null,null,null,null,null,"Valores vigentes até 31/3/2016",579.29999999999995,643.20000000000005]
[null,null,null,null,null,null,null,null,null,null,null,null,null,null,null,null,null,366,1701.9,1889.4]
[null,null,null,null,null,null,null,null,null,null,null,null,null,null,null,null,null,731.4,1806.6,2005.5]
[null,null,null,null,null,null,null,null,null,null,null,null,null,null,null,null,null,1023.6,2508.6,2784.6]
[null,null,null,null,null,null,null,null,null,null,null,null,null,null,null,null,null,2587.1999999999998,3104.7,3446.4]
[null,null,null,null,null,null,null,null,null,null,null,null,null,null,null,null,null,4238.7,6143.4,6819.3]
[null,null,null,null,null,null,null,null,null,null,null,null,null,null,null,null,null,6143.4,"Valores vigentes até 31/3/2016","Valores vigentes a partir de 1º/4/2016"]
[null,null,null,null,null,null,null,null,null,null,null,null,null,null,null,null,null,585,366,406.5]
[null,null,null,null,null,null,null,null,null,null,null,null,null,null,null,null,null,877.2,731.4,812.1]
[null,null,null,null,null,null,null,null,null,null,null,null,null,null,null,null,null,"USD 1.200",1023.6,1136.4000000000001]
[null,null,null,null,null,null,null,null,null,null,null,null,null,null,null,null,null,"Valores vigentes até 31/3/2016",2587.1999999999998,2871.9]
[null,null,null,null,null,null,null,null,null,null,null,null,null,null,null,null,null,6980.4,4238.7,4705.2]
[null,null,null,null,null,null,null,null,null,null,null,null,null,null,null,null,null,"Valores vigentes até 31/3/2016",6143.4,6819.3]
[null,null,null,null,null,null,null,null,null,null,null,null,null,null,null,null,null,263.7,585,649.5]
[null,null,null,null,null,null,null,null,null,null,null,null,null,null,null,null,null,526.79999999999995,877.2,973.8]
[null,null,null,null,null,null,null,null,null,null,null,null,null,null,null,null,null,789.9,"USD 1.200","USD 1.200"]
[null,null,null,null,null,null,null,null,null,null,null,null,null,null,null,null,null,1052.4000000000001,"Valores vigentes até 31/3/2016","Valores vigentes a partir de 1º/4/2016"]
[null,null,null,null,null,null,null,null,null,null,null,null,null,null,null,null,null,1316.1,6980.4,7748.4]
[null,null,null,null,null,null,null,null,null,null,null,null,null,null,null,null,null,2104.8000000000002,"Valores vigentes até 31/3/2016","Valores vigentes a partir de 1º/4/2016"]
[null,null,null,null,null,null,null,null,null,null,null,null,null,null,null,null,null,"Valores vigentes até 31/3/2016",263.7,292.8]
[null,null,null,null,null,null,null,null,null,null,null,null,null,null,null,null,null,3372.9,526.79999999999995,585]
[null,null,null,null,null,null,null,null,null,null,null,null,null,null,null,null,null,4990.8,789.9,876.9]
[null,null,null,null,null,null,null,null,null,null,null,null,null,null,null,null,null,6980.4,1052.4000000000001,1168.2]
[null,null,null,null,null,null,null,null,null,null,null,null,null,null,null,null,null,"Valores vigentes até 31/3/2016",1316.1,1461]
[null,null,null,null,null,null,null,null,null,null,null,null,null,null,null,null,null,579.29999999999995,2104.8000000000002,2336.4]
[null,null,null,null,null,null,null,null,null,null,null,null,null,null,null,null,null,1701.9,"Valores vigentes até 31/3/2016","Valores vigentes a partir de 1º/4/2016"]
[null,null,null,null,null,null,null,null,null,null,null,null,null,null,null,null,null,2508.6,3372.9,3744]
[null,null,null,null,null,null,null,null,null,null,null,null,null,null,null,null,null,6143.4,4990.8,5539.8]
[null,null,null,null,null,null,null,null,null,null,null,null,null,null,null,null,null,null,6980.4,7748.4]
[null,null,null,null,null,null,null,null,null,null,null,null,null,null,null,null,null,null,"Valores vigentes até 31/3/2016","Valores vigentes a partir de 1º/4/2016"]
[null,null,null,null,null,null,null,null,null,null,null,null,null,null,null,null,null,null,579.29999999999995,643.20000000000005]
[null,null,null,null,null,null,null,null,null,null,null,null,null,null,null,null,null,null,1701.9,1889.4]
[null,null,null,null,null,null,null,null,null,null,null,null,null,null,null,null,null,null,2508.6,2784.6]
[null,null,null,null,null,null,null,null,null,null,null,null,null,null,null,null,null,null,6143.4,6819.3]

{"sheet":"CONSOLIDADA","index":11,"n_rows":35,"n_cols":31,"rows_kept":35,"cut":false,"hidden":false,"merged":[[12,16,12,17],[13,4,13,6],[12,4,12,6],[4,15,4,17],[5,4,5,6],[4,4,4,6],[7,4,7,6],[11,15,11,17],[6,4,6,6],[10,4,10,6],[4,8,4,10],[5,8,5,10],[6,8,6,10],[9,15,9,17],[21,7,21,10],[17,8,17,10],[18,8,18,10],[20,8,20,10],[7,8,7,10],[8,8,8,10],[9,8,9,10],[10,8,10,10],[28,2,28,4],[28,5,29,10],[29,2,29,3],[30,2,30,3],[5,15,5,17],[8,15,8,17],[7,15,7,17],[11,4,11,6],[27,2,27,15],[11,8,11,10],[17,4,17,6],[15,4,15,6],[18,4,18,6],[14,4,14,6],[3,2,21,2],[21,4,21,6],[34,2,34,3],[34,11,34,14],[28,11,28,15],[31,5,31,10],[32,5,32,10],[33,11,33,14],[34,5,34,10],[31,2,31,3],[32,2,32,3],[33,2,33,3],[33,5,33,10],[32,11,32,14],[31,11,31,14],[30,11,30,14],[29,11,29,14],[30,5,30,10],[20,4,20,6],[12,8,12,10],[13,8,13,10],[15,8,15,10],[16,8,16,10],[14,8,14,10],[5,18,9,18],[1,7,1,8],[9,4,9,6],[3,5,3,10],[8,4,8,6],[6,15,6,17]]}
["    ",null,null,null,null,null,null,null,null,null,"taxa do dólar"]
[null,null,null,null,null,null,null,"Taxa do dólar do Banco Central do dia:",null,{"$f":"NOW()","v":"2017-08-31T16:22:37.440"},3.1301000000000001]
[]
[null,null,"IMPRESSÃO OBRIGATÓRIA",null,"PLANILHA DE TOTALIZAÇÃO DOS RECURSOS SOLICITADOS À FAPESP",{"$f":"IF('1-MPN'!B7=\"CLIQUE AQUI E SELECIONE A MODALIDADE DO AUXÍLIO SOLICITADO\",\"SELECIONE O TIPO DE AUXÍLIO NA ABA 1-MPN\",'1-MPN'!B7)","v":"SELECIONE O TIPO DE AUXÍLIO NA ABA 1-MPN"},null,null,null,null,null,null,null,null,null,"CLIQUE AQUI E SELECIONE A MODALIDADE DO AUXÍLIO SOLICITADO",null,null,null,null,null,null,null,null,null,null,null,null,null,null,""]
[null,null,null,null,"ITENS SOLICITADOS                                                 ",null,null," Nacional","Importado",null,null,null,null,null,null,{"$f":"$F$4","v":"SELECIONE O TIPO DE AUXÍLIO NA ABA 1-MPN"},null,null,"CÉLULA VARIÁVEL"]
["  ",null,null,null,"MATERIAL PERMANENTE",null,null,{"$f":"'1-MPN'!D15","v":""},{"$f":"'2-MPI'!D18","v":""},null,null,null,null,null,null,"AUXÍLIO À PESQUISA - PROJETO TEMÁTICO",null,null,"CÉLULAS FIXAS",null,"BC"]
[null,null,null,null,"MATERIAL DE CONSUMO",null,null,{"$f":"'3-MCN'!D12","v":""},{"$f":"'4-MCI'!D18","v":""},null,null,null,null,null,null,"AUXÍLIO À PESQUISA - JOVENS PESQUISADORES",null,null,null,null,1]
[null,null,null,null,"SERVIÇOS DE TERCEIROS",null,null,{"$f":"'5-STB'!D12","v":""},{"$f":"'6-STE'!D17","v":""},null,null,null,null,null,null,"AUXÍLIO À PESQUISA - POLÍTICAS PÚBLICAS",null,null,null,null,2]
[null,null,null,null,"DESPESAS COM DIÁRIAS NO PAÍS E NO EXTERIOR",null,null,{"$f":"'8-DIP-DIE'!D12","v":""},{"$f":"'8-DIP-DIE'!K12","v":""},null,null,null,null,null,null,"AUXÍLIO À PESQUISA - REGULAR",null,null,null,null,3]
[null,null,null,null,"DESPESAS DE TRANSPORTE",null,null,{"$f":"'7-TRAN'!D13","v":""},null,null,null,null,null,null,null,"AUXÍLIO À PESQUISA - ENSINO PÚBLICO",null,null,null,null,4]
[null,null,null,null,"BOLSAS DE CAPACITAÇÃO TÉCNICA - VINCULADAS A TODOS OS AUXÍLIOS DESTA PLANILHA",null,null,{"$f":"'9a-BOLSAS - TT'!E13","v":""},null,null,null,null,null,null,null,null,null,null,null,null,5]
[null,null,null,null,"BOLSAS IC, DD E PD -  VINCULADAS AO PROJETO TEMÁTICO",null,null,{"$f":"'9b-BOLSAS IC,DD,PD - TEMÁTICO'!C12","v":""},null,null,null,null,null,null,null,"BENEFÍCIOS COMPLEMENTARES",null,null,null,null,6]
[null,null,null,null,"BOLSAS IC, MS E DD VINCULADAS AO PROGRAMA JOVEM PESQUISADOR",null,null,{"$f":"'9C-BOLSAS IC,MS,DD - JP'!C12","v":""},null,null,null,null,null,null,null,8000,"OUTROS AUXÍLIOS",null,null,null,7]
[null,null,null,null,"RESERVA TÉCNICA DE IMPORTAÇÃO",null,null,null,{"$f":"IF(F4=\"MODALIDADE: CLIQUE AQUI E SELECIONE A MODALIDADE DO AUXÍLIO SOLICITADO\",\"\",SUM(I6:K8)*0.15)","v":0},null,null,null,null,null,null,12000,"TEMATICO/JP",null,null,null,8]
[null,null,null,null,"RESERVA TÉCNICA PARA INFRAESTRUTURA DIRETA DO PROJETO",null,null,{"$f":"IF($P$5=\"CLIQUE AQUI E SELECIONE A MODALIDADE DO AUXÍLIO SOLICITADO\",0,IF($P$5=$P$6,SUM($H$5:$H$10)*0.2,SUM($H$5:$H$10)*0.15))","v":0},{"$f":"IF(F4=\"MODALIDADE: CLIQUE AQUI E SELECIONE A MODALIDADE DO AUXÍLIO SOLICITADO\",\"\",IF(P5=P6,SUM(I6:K8)*0.2,SUM(I6:K8)*0.15))","v":0},null,null,null,null,116724.61,null,null,null,null,null,null,9]
[null,null,null,null,"RESERVA TÉCNICA DAS BOLSAS ACADÊMICAS SOLICITADAS",null,null,{"$f":"'9b-BOLSAS IC,DD,PD - TEMÁTICO'!K41","v":0},null,null,null,null,null,16442.740000000002,null,null,null,null,null,null,10]
[null,null,null,null,{"$f":"IF($F$4=\"SELECIONE O TIPO DE AUXÍLIO NA ABA 1-MPN\",\"Selecione o tipo de Auxílio na aba 1-MPN, onde está escrito: Clique Aqui e Selecione a Modalidade do Auxílio Solicitado.\",\nIF(P5=P6,\"Benefícios Complementares para PROJETOS TEMÁTICOS indique ao lado a quantidade de Pesquisadores Principais e na sequência, a duração do auxílio solicitado.\",\nIF(P5=P7,\"Benefícios Complementares para: AUXÍLIO À PESQUISA - JOVENS PESQUISADORES, indique apenas a duração em anos.\",\nIF(P5=P10,\"Benefícios Complementares para: AUXÍLIO À PESQUISA - ENSINO PÚBLICO, indique apenas a duração em anos.\",\nIF(P5=P8,\"Benefícios Complementares para: AUXÍLIO À PESQUISA - POLÍTICAS PÚBLICAS, indique apenas a duração em anos.\",\nIF(P5=P9,\"Benefícios Complementares para: AUXÍLIO À PESQUISA - REGULAR, indique apenas a duração em anos.\",))))))","v":"Selecione o tipo de Auxílio na aba 1-MPN, onde está escrito: Clique Aqui e Selecione a Modalidade do Auxílio Solicitado."},null,null,{"$f":"IF(P5=P6,SUM(P14*G17*F17),IF(P5=P7,SUM(P14*G17),SUM(P13*G17)))","v":0},null,null,null,null,null,110242.74]
[null,null,null,null,"TOTAL DO PROCESSO",null,null,{"$f":"SUM(H6:H17)","v":0},{"$f":"SUM(I6:K17)","v":0},null,null,null,null,4600]
[null,null,null,null,"RESERVA TÉCNICA PARA INFRAESTRUTURA INSTITUCIONAL DE PESQUISA",null,null,{"$f":"IF(ISERROR(IF(F4=\"MODALIDADE: CLIQUE AQUI E SELECIONE A MODALIDADE DO AUXÍLIO SOLICITADO\",\"\",IF($P$5=$P$6,SUM($H$6:$H$10)*0.2,SUM($H$6:$H$10)*0.1))),\"\",IF(F4=\"MODALIDADE: G17CLIQUE AQUI E SELECIONE A MODALIDADE DO AUXÍLIO SOLICITADO\",\"\",IF($P$5=$P$6,SUM($H$6:$H$10)*0.2,SUM($H$6:$H$10)*0.1)))","v":0},{"$f":"IF(ISERROR(IF(F4=\"MODALIDADE: CLIQUE AQUI E SELECIONE A MODALIDADE DO AUXÍLIO SOLICITADO\",\"\",IF($P$5=$P$6,SUM(I6:K9)*0.2,SUM($I$6:$K$9)*0.1))),\"\",IF(F4=\"MODALIDADE: CLIQUE AQUI E SELECIONE A MODALIDADE DO AUXÍLIO SOLICITADO\",\"\",IF($P$5=$P$6,SUM($I$6:$K$9)*0.2,SUM($I$6:$K$9)*0.1)))","v":0},null,null,null,null,{"$f":"SUM(N15:N18)","v":248010.09000000003}]
[]
[null,null,null,null,"TOTAL COM CONVERSÃO DO DÓLAR PARA REAL",null,null,{"$f":"H18+H19","v":0},{"$f":"(I18+I19)*K2","v":0}]
[null,null,null,null,"TOTAL GERAL (GRAND TOTAL)",null,null,{"$f":"IF(H21+I21=0,\"\",H21+I21)","v":""}]
[null,null,null,null,{"$f":"'9C-BOLSAS IC,MS,DD - JP'!B42","v":"FAPESP, AGOSTO DE 2017"}]
[]
[]
[]
[]
[null,null,"TABELA INFORMATIVA PARA OS CÁLCULOS (www.fapesp.br/rt) "]
[null,null,"Reserva Técnica para infraestrutura Direta do Projeto",null,null,"MODALIDADE",null,null,null,null,null,"Reserva Técnica para Infraestrutura Institucional de Pesquisa"]
[null,null,"Valor",null,"Desembolso",null,null,null,null,null,null,"Valor",null,null,null,"Desembolso"]
[null,null,0.15,null,"Na outorga","Auxílio à Pesquisa – Regular",null,null,null,null,null,0.1,null,null,null,"Anual consolidado"]
[null,null,0.2,null,"Na outorga","Auxílio à Pesquisa – Temático",null,null,null,null,null,0.2,null,null,null,"Anual consolidado"]
[null,null,0.15,null,"Na outorga","Auxílio à Pesquisa – Jovem Pesquisador",null,null,null,null,null,0.1,null,null,null,"Anual consolidado"]
[null,null,0.15,null,"Na outorga","Auxílio à Pesquisa – Pesq. em Políticas Públicas",null,null,null,null,null,0.1,null,null,null,"Anual consolidado"]
[null,null,0.15,null,"Na outorga","Auxílio à Pesquisa – Pesquisa para Melhoria do Ensino Público",null,null,null,null,null,0.1,null,null,null,"Anual consolidado"]